Workbook

Sheet Market Size
B6: Accumulated number of idustry automation devices (open air) in the field 5 years after launch worldwide in all different frequency bands: | H6: 300000
B7: Fraction of devices sold for the European market in all bands [%]: | H7: 40
B8: Fraction of devices sold in the band 116-148,5GHz [%]: | H8: 50
B9: Fraction of devices sold in the band 167-182GHz [%]: | H9: 30
B10: Fraction of devices sold in the band 231,5-250GHz [%]: | H10: 20
B12: Accumulated number of devices in the field after 5 years in Europe in the band 116-148,5GHz: | H12: =H6*H7/100*H8/100 -> 60000
B13: Accumulated number of devices in the field after 5 years in Europe in the band 167-182GHz: | H13: =H6*H7/100*H9/100 -> 36000
B14: Accumulated number of devices in the field after 5 years in Europe in the band 231,5-250GHz: | H14: =H6*H7/100*H10/100 -> 24000
B16: Land area of Europe [km²] | H16: 10523000
B18: Interferer density in Europe in the band 116-148,5GHz [devices/km²] | H18: =H12/H16 -> 0.005701796066
B19: Interferer density in Europe in the band 167-182GHz [devices/km²] | H19: =H13/H16 -> 0.003421077639
B20: Interferer density in Europe in the band 231,5-250GHz [devices/km²] | H20: =H14/H16 -> 0.002280718426

Sheet EESS 116-148,5GHz
B1: Compatibility analysis between tank level probing radar in the frequency band 116-148,5 GHz and EESS
B3: Single-entry study | D3: Band of EESS: 114,25-122,25 GHz | F3: Band of EESS: 148,5-151,5 GHz
B4: Victim EESS system | D4: MWI | E4: Planned EUMETSAT radiometer (ECC Report 190) | F4: Sensor N1 (nadir) | G4: Sensor N1 (outer)
B5: Sensor type | D5: Conical scan | E5: Conical scan | F5: Nadir scan | G5: Nadir scan
B6: EESS: | C6: Units
B7: Assumed centre frequency of EESS | C7: GHz | D7: 119.125 | E7: 119.125 | F7: 150 | G7: 150
B8: Wavelength of EESS | C8: m | D8: =2.99792458/D7/10 -> 0.002516620844 | E8: =2.99792458/E7/10 -> 0.002516620844 | F8: =2.99792458/F7/10 -> 0.001998616387 | G8: =2.99792458/G7/10 -> 0.001998616387
B9: Reference bandwidth | C9: MHz | D9: 200 | E9: 200 | F9: 500 | G9: 500
B10: Orbit altitude | C10: km² | D10: 830 | E10: 800 | F10: 705 | G10: 705
B11: Angle of incidence at Earth's surface (from zenith) | C11: deg | D11: 53.3 | E11: 53 | F11: 0 | G11: 56.9
B12: Elevation angle at ground | C12: deg | D12: =90-D11 -> 36.7 | E12: =90-E11 -> 37 | F12: =90-F11 -> 90 | G12: =90-G11 -> 33.1
B13: Off-nadir angle | C13: deg | D13: =(ASIN(SIN(D11*PI()/180)/(1+D10/6371)))*180/PI()+0.00000001 -> 45.18299423 | E13: 45.19744971 | F13: =(ASIN(SIN(F11*PI()/180)/(1+F10/6371)))*180/PI()+0.00000001 -> 1e-08 | G13: 48.96028579
B14: Slant path distance | C14: km | D14: =6371*SIN((ASIN(((6371+D10)/6371)*SIN(D13*PI()/180))*180/PI()-D13)*PI()/180)/SIN(D13*PI()/180) -> 1268.117481 | E14: 1218.99489 | F14: =6371*SIN((ASIN(((6371+F10)/6371)*SIN(F13*PI()/180))*180/PI()-F13)*PI()/180)/SIN(F13*PI()/180) -> 705 | G14: 1166.758594
B15: EESS antenna gain | C15: dBi | D15: 55.5 | E15: 55 | F15: 45 | G15: 45
B16: Size of EESS FOV on Earth's surface | C16: km² | D16: 82 | E16: 82 | F16: 154 | G16: 759
B17: EESS interference criterion in the reference bandwidth (ITU-R RS.2017-0) | C17: dBW | D17: -166 | E17: -166 | F17: -159 | G17: -159
B18: Apportionment factor | D18: 12 | E18: 12 | F18: 12 | G18: 12
B20: TLPR system (interferer):
B21: Conducted Tx power of interferer | C21: dBm | D21: 10 | E21: 10 | F21: 10 | G21: 10
B22: Out-of-band unwanted emissions attenuation (if EESS victim is located in an adjacent band) | C22: dB | D22: 0 | E22: 0 | F22: 20 | G22: 20
B23: Tx e.i.r.p. of interferer | C23: dBm | D23: =D21-D22+D28 -> 42 | E23: 42 | F23: 22 | G23: =G21-G22+G28 -> 22
B24: Bandwidth of interferer Tx signal | C24: GHz | D24: 1 | E24: 1 | F24: 1 | G24: 1
B25: Tx e.i.r.p. spectral density of interferer | C25: dBm/MHz | D25: =D23-10*LOG(D24*1000) -> 12 | E25: 12 | F25: -8 | G25: =G23-10*LOG(G24*1000) -> -8
B26: Tx e.i.r.p. spectral density of interferer | C26: dBW/MHz | D26: =D25-30 -> -18 | E26: -18 | F26: -38 | G26: =G25-30 -> -38
B27: Mitigation technique (e.g. activity factor, adaptive power control) | C27: dB | D27: 0 | E27: 0 | F27: 0 | G27: 0
B28: Gain of the interferer antenna in direction of main radiation | C28: dBi | D28: 32 | E28: 32 | F28: 32 | G28: 32
B30: Free space loss between interferer and EESS | C30: dB | D30: =20*LOG10(4*PI()*D14*1000/D8) -> 196.0310313 | E30: =20*LOG10(4*PI()*E14*1000/E8) -> 195.6878792 | F30: =20*LOG10(4*PI()*F14*1000/F8) -> 192.9333907 | G30: =20*LOG10(4*PI()*G14*1000/G8) -> 197.3092286
B31: Direct e.i.r.p. spectral density at the EESS antenna | C31: dBW/MHz | D31: =D26-D30+D27 -> -214.0310313 | E31: -213.6878792 | F31: -230.9333907 | G31: =G26-G30+G27 -> -235.3092286
B32: Atmospheric loss (according to contribution SE24(20)063_rev1) | C32: dB | D32: 3.2 | E32: 3.2 | F32: 2 | G32: 3.8
B33: Polarisation mismatch loss | C33: dB | D33: 3 | E33: 3 | F33: 3 | G33: 3
B34: Tank attenuation (according to clause 2.3 in the Report) | C34: dB | D34: 48.4 | E34: 48.4 | F34: 61.82 | G34: 61.82
B35: Power spectral density at the EESS receiver in a 1 MHz bandwidth | C35: dBW/MHz | D35: =D31+D15-D32-D33-D34 -> -213.1310313 | E35: =E31+E15-E32-E33-E34 -> -213.2878792 | F35: =F31+F15-F32-F33-F34 -> -252.7533907 | G35: =G31+G15-G32-G33-G34 -> -258.9292286
B36: Corresponding power at the EESS receiver in the reference bandwidth for a single TLPR | C36: dBW | D36: =D35+10*LOG10(D9) -> -190.1207313 | E36: =E35+10*LOG10(E9) -> -190.2775792 | F36: =F35+10*LOG10(F9) -> -225.7636907 | G36: =G35+10*LOG10(G9) -> -231.9395285
B37: Number of interferers in EESS FOV on Earth's surface | D37: 1 | E37: 1 | F37: 1 | G37: 1
B38: Corresponding received power at the EESS in the reference bandwidth within the EESS's FOV | C38: dBW | D38: =D36+10*LOG10(D37) -> -190.1207313 | E38: =E36+10*LOG10(E37) -> -190.2775792 | F38: =F36+10*LOG10(F37) -> -225.7636907 | G38: =G36+10*LOG10(G37) -> -231.9395285
B39: Margin with reference to ITU-R RS.2017-0 | C39: dB | D39: =D17-D18-D38 -> 12.12073133 | E39: =E17-E18-E38 -> 12.27757924 | F39: =F17-F18-F38 -> 54.7636907 | G39: =G17-G18-G38 -> 60.93952853
B46: Aggregate interference study | D46: Band of EESS: 114,25-122,25 GHz | F46: Band of EESS: 148,5-151,5 GHz
B47: Victim EESS system | D47: MWI | E47: Planned EUMETSAT radiometer (ECC Report 190) | F47: Sensor N1 (nadir) | G47: Sensor N1 (outer)
B48: Sensor type | D48: Conical scan | E48: Conical scan | F48: Nadir scan | G48: Nadir scan
B49: EESS: | C49: Units
B50: Assumed centre frequency of EESS | C50: GHz | D50: 119.125 | E50: 119.125 | F50: 150 | G50: 150
B51: Wavelength of EESS | C51: m | D51: =2.99792458/D50/10 -> 0.002516620844 | E51: =2.99792458/E50/10 -> 0.002516620844 | F51: =2.99792458/F50/10 -> 0.001998616387 | G51: =2.99792458/G50/10 -> 0.001998616387
B52: Reference bandwidth | C52: MHz | D52: 200 | E52: 200 | F52: 500 | G52: 500
B53: Orbit altitude | C53: km² | D53: 830 | E53: 800 | F53: 705 | G53: 705
B54: Angle of incidence at Earth's surface (from zenith) | C54: deg | D54: 53.3 | E54: 53 | F54: 0 | G54: 56.9
B55: Elevation angle at ground | C55: deg | D55: =90-D54 -> 36.7 | E55: =90-E54 -> 37 | F55: =90-F54 -> 90 | G55: =90-G54 -> 33.1
B56: Off-nadir angle | C56: deg | D56: =(ASIN(SIN(D54*PI()/180)/(1+D53/6371)))*180/PI()+0.00000001 -> 45.18299423 | E56: 45.19744971 | F56: 1e-08 | G56: 48.96028579
B57: Slant path distance | C57: km | D57: =6371*SIN((ASIN(((6371+D53)/6371)*SIN(D56*PI()/180))*180/PI()-D56)*PI()/180)/SIN(D56*PI()/180) -> 1268.117481 | E57: 1218.99489 | F57: 705 | G57: 1166.758594
B58: EESS antenna gain | C58: dBi | D58: 55.5 | E58: 55 | F58: 45 | G58: 45
B59: Size of EESS FOV on Earth's surface | C59: km² | D59: 82 | E59: 82 | F59: 154 | G59: 759
B60: EESS interference criterion in the reference bandwidth (ITU-R RS.2017-0) | C60: dBW | D60: -166 | E60: -166 | F60: -159 | G60: -159
B61: Apportionment factor | D61: 12 | E61: 12 | F61: 12 | G61: 12
B63: TLPR system (interferer):
B64: Conducted Tx power of interferer | C64: dBm | D64: 10 | E64: 10 | F64: 10 | G64: 10
B65: Out-of-band unwanted emissions attenuation (if EESS victim is located in an adjacent band) | C65: dB | D65: 0 | E65: 0 | F65: 20 | G65: 20
B66: Tx e.i.r.p. of interferer | C66: dBm | D66: =D64-D65+D71 -> 20 | E66: 20 | F66: 0 | G66: 0
B67: Bandwidth of interferer Tx signal | C67: GHz | D67: 1 | E67: 1 | F67: 1 | G67: 1
B68: Tx e.i.r.p. spectral density of interferer | C68: dBm/MHz | D68: =D66-10*LOG(D67*1000) -> -10 | E68: -10 | F68: -30 | G68: -30
B69: Tx e.i.r.p. spectral density of interferer | C69: dBW/MHz | D69: =D68-30 -> -40 | E69: -40 | F69: -60 | G69: -60
B70: Mitigation technique (e.g. activity factor, adaptive power control) | C70: dB | D70: 0 | E70: 0 | F70: 0 | G70: 0
B71: Average gain of the interferer antenna in the direction of the victim EESS system | C71: dBi | D71: 10 | E71: 10 | F71: 10 | G71: 10
B73: Free space loss between interferer and EESS | C73: dB | D73: =20*LOG10(4*PI()*D57*1000/D51) -> 196.0310313 | E73: =20*LOG10(4*PI()*E57*1000/E51) -> 195.6878792 | F73: =20*LOG10(4*PI()*F57*1000/F51) -> 192.9333907 | G73: =20*LOG10(4*PI()*G57*1000/G51) -> 197.3092286
B74: Direct e.i.r.p. spectral density at the EESS antenna | C74: dBW/MHz | D74: =D69-D73+D70 -> -236.0310313 | E74: -235.6878792 | F74: -252.9333907 | G74: -257.3092286
B75: Atmospheric loss (according to contribution SE24(20)063_rev1) | C75: dB | D75: 3.2 | E75: 3.2 | F75: 2 | G75: 3.8
B76: Polarisation mismatch loss | C76: dB | D76: 3 | E76: 3 | F76: 3 | G76: 3
B77: Tank attenuation (according to clause 2.3 in the Report) | C77: dB | D77: 48.4 | E77: 48.4 | F77: 61.82 | G77: 61.82
B78: Power spectral density at the EESS receiver in a 1 MHz bandwidth | C78: dBW/MHz | D78: =D74+D58-D75-D76-D77 -> -235.1310313 | E78: =E74+E58-E75-E76-E77 -> -235.2878792 | F78: =F74+F58-F75-F76-F77 -> -274.7533907 | G78: =G74+G58-G75-G76-G77 -> -280.9292286
B79: Corresponding power at the EESS receiver in the reference bandwidth for a single TLPR | C79: dBW | D79: =D78+10*LOG10(D52) -> -212.1207313 | E79: =E78+10*LOG10(E52) -> -212.2775792 | F79: =F78+10*LOG10(F52) -> -247.7636907 | G79: =G78+10*LOG10(G52) -> -253.9395285
B80: Uniform TLPR device density (with uniform distribution over Europe) | C80: 1/km² | D80: ='Market Size'!H18 -> 0.005701796066 | E80: ='Market Size'!H18 -> 0.005701796066 | F80: ='Market Size'!H18 -> 0.005701796066 | G80: ='Market Size'!H18 -> 0.005701796066
B81: Aggregate TLPR device density (uniform distribution weighted with factor 75; acc. to annex 9 in the Report) | C81: 1/km² | D81: =D80*75 -> 0.4276347049 | E81: =E80*75 -> 0.4276347049 | F81: =F80*75 -> 0.4276347049 | G81: =G80*75 -> 0.4276347049
B82: Number of aggregate TLPR devices in the IFOV and active in the reference BW of the satellite | D82: =ROUNDUP(D81*D59,0) -> 36 | E82: =ROUNDUP(E81*E59,0) -> 36 | F82: =ROUNDUP(F81*F59,0) -> 66 | G82: =ROUNDUP(G81*G59,0) -> 325
B83: Corresponding received power at the EESS in the reference bandwidth within the EESS's FOV | C83: dBW | D83: =D79+10*LOG10(D82) -> -196.5577063 | E83: =E79+10*LOG10(E82) -> -196.7145542 | F83: =F79+10*LOG10(F82) -> -229.5682513 | G83: =G79+10*LOG10(G82) -> -228.8206949
B84: Margin with reference to ITU-R RS.2017-0 | C84: dB | D84: =D60-D61-D83 -> 18.55770632 | E84: =E60-E61-E83 -> 18.71455423 | F84: =F60-F61-F83 -> 58.56825134 | G84: =G60-G61-G83 -> 57.82069492

Sheet EESS 167-182GHz
B1: Compatibility analysis between tank level probing radar in the frequency band 167-182 GHz and EESS
B3: Single-entry study | D3: Band of EESS: 164-167 GHz | G3: Band of EESS: 174,8-191,8 GHz
B4: Victim EESS system | D4: Sensor P1 | E4: Sensor P2 (nadir) | F4: Sensor P2 (outer) | G4: MHS (nadir) | H4: MHS (outer) | I4: MWI | J4: MWS (nadir) | K4: MWS (outer) | L4: ICI | M4: AWS (nadir) | N4: AWS (outer)
B5: Sensor type | D5: Conical scan | E5: Nadir scan | F5: Nadir scan | G5: Nadir scan | H5: Nadir scan | I5: Conical scan | J5: Nadir scan | K5: Nadir scan | L5: Conical scan | M5: Nadir scan | N5: Nadir scan
B6: EESS: | C6: Units
B7: Assumed centre frequency of EESS | C7: GHz | D7: 165.5 | E7: 165.5 | F7: 165.5 | G7: 178.4 | H7: 178.4 | I7: 178.4 | J7: 178.4 | K7: 178.4 | L7: 178.4 | M7: 178.4 | N7: 178.4
B8: Wavelength of EESS | C8: m | D8: =2.99792458/D7/10 -> 0.001811434792 | E8: 0.001811434792 | F8: 0.001811434792 | G8: 0.001680450998 | H8: 0.001680450998 | I8: 0.001680450998 | J8: 0.001680450998 | K8: 0.001680450998 | L8: 0.001680450998 | M8: 0.001680450998 | N8: 0.001680450998
B9: Reference bandwidth | C9: MHz | D9: 200 | E9: 200 | F9: 200 | G9: 200 | H9: 200 | I9: 200 | J9: 200 | K9: 200 | L9: 200 | M9: 200 | N9: 200
B10: Orbit altitude | C10: km² | D10: 828 | E10: 824 | F10: 824 | G10: 822 | H10: 822 | I10: 830 | J10: 830 | K10: 830 | L10: 830 | M10: 600 | N10: 600
B11: Angle of incidence at Earth's surface (from zenith) | C11: deg | D11: 55.5 | E11: 0 | F11: 64 | G11: 0 | H11: 59 | I11: 53.3 | J11: 0 | K11: 58.5 | L11: 53.3 | M11: 0 | N11: 55.7
B12: Elevation angle at ground | C12: deg | D12: =90-D11 -> 34.5 | E12: 90 | F12: 26 | G12: 90 | H12: 31 | I12: 36.7 | J12: 90 | K12: 31.5 | L12: 36.7 | M12: 90 | N12: 34.3
B13: Off-nadir angle | C13: deg | D13: =(ASIN(SIN(D11*PI()/180)/(1+D10/6371)))*180/PI()+0.00000001 -> 46.83096782 | E13: 1e-08 | F13: 52.73661527 | G13: 1e-08 | H13: 49.39479043 | I13: 45.18299423 | J13: 1e-08 | K13: 48.96977181 | L13: 45.18299423 | M13: 1e-08 | N13: 49.02495908
B14: Slant path distance | C14: km | D14: =6371*SIN((ASIN(((6371+D10)/6371)*SIN(D13*PI()/180))*180/PI()-D13)*PI()/180)/SIN(D13*PI()/180) -> 1316.643352 | E14: 824 | F14: 1563.565476 | G14: 822 | H14: 1400.207928 | I14: 1268.117481 | J14: 830 | K14: 1398.309283 | L14: 1268.117481 | M14: 600 | N14: 980.8707785
B15: EESS antenna gain | C15: dBi | D15: 54 | E15: 43.9 | F15: 43.9 | G15: 44.8 | H15: 44.8 | I15: 56.9 | J15: 43 | K15: 43 | L15: 52 | M15: 50 | N15: 50
B16: Size of EESS FOV on Earth's surface | C16: km² | D16: 113 | E16: 254 | F16: 2083 | G16: 201 | H16: 1103 | I16: 61 | J16: 315 | K16: 1762 | L16: 164 | M16: 28 | N16: 141
B17: EESS interference criterion in the reference bandwidth (ITU-R RS.2017-0) | C17: dBW | D17: -163 | E17: -163 | F17: -163 | G17: -163 | H17: -163 | I17: -163 | J17: -163 | K17: -163 | L17: -163 | M17: -163 | N17: -163
B18: Apportionment factor | D18: 12 | E18: 12 | F18: 12 | G18: 12 | H18: 12 | I18: 12 | J18: 12 | K18: 12 | L18: 12 | M18: 12 | N18: 12
B20: TLPR system (interferer):
B21: Conducted Tx power of interferer | C21: dBm | D21: 10 | E21: 10 | F21: 10 | G21: 10 | H21: 10 | I21: 10 | J21: 10 | K21: 10 | L21: 10 | M21: 10 | N21: 10
B22: Out-of-band unwanted emissions attenuation (if EESS victim is located in an adjacent band) | C22: dB | D22: 20 | E22: 20 | F22: 20 | G22: 0 | H22: 0 | I22: 0 | J22: 0 | K22: 0 | L22: 0 | M22: 0 | N22: 0
B23: Tx e.i.r.p. of interferer | C23: dBm | D23: =D21-D22+D28 -> 22 | E23: 22 | F23: 22 | G23: 42 | H23: =H21-H22+H28 -> 42 | I23: 42 | J23: 42 | K23: 42 | L23: 42 | M23: 42 | N23: 42
B24: Bandwidth of interferer Tx signal | C24: GHz | D24: 1 | E24: 1 | F24: 1 | G24: 1 | H24: 1 | I24: 1 | J24: 1 | K24: 1 | L24: 1 | M24: 1 | N24: 1
B25: Tx e.i.r.p. spectral density of interferer | C25: dBm/MHz | D25: =D23-10*LOG(D24*1000) -> -8 | E25: -8 | F25: -8 | G25: 12 | H25: =H23-10*LOG(H24*1000) -> 12 | I25: 12 | J25: 12 | K25: 12 | L25: 12 | M25: 12 | N25: 12
B26: Tx e.i.r.p. spectral density of interferer | C26: dBW/MHz | D26: =D25-30 -> -38 | E26: -38 | F26: -38 | G26: -18 | H26: =H25-30 -> -18 | I26: -18 | J26: -18 | K26: -18 | L26: -18 | M26: -18 | N26: -18
B27: Mitigation technique (e.g. activity factor, adaptive power control) | C27: dB | D27: 0 | E27: 0 | F27: 0 | G27: 0 | H27: 0 | I27: 0 | J27: 0 | K27: 0 | L27: 0 | M27: 0 | N27: 0
B28: Gain of the interferer antenna in direction of main radiation | C28: dBi | D28: 32 | E28: 32 | F28: 32 | G28: 32 | H28: 32 | I28: 32 | J28: 32 | K28: 32 | L28: 32 | M28: 32 | N28: 32
B30: Free space loss between interferer and EESS | C30: dB | D30: =20*LOG10(4*PI()*D14*1000/D8) -> 199.2131062 | E30: =20*LOG10(4*PI()*E14*1000/E8) -> 195.1422874 | F30: =20*LOG10(4*PI()*F14*1000/F8) -> 200.7060646 | G30: =20*LOG10(4*PI()*G14*1000/G8) -> 195.7731166 | H30: =20*LOG10(4*PI()*H14*1000/H8) -> 200.3995309 | I30: 199.53887 | J30: 195.8572421 | K30: 200.387745 | L30: 199.53887 | M30: 193.0387052 | N30: 197.3079162
B31: Direct e.i.r.p. spectral density at the EESS antenna | C31: dBW/MHz | D31: =D26-D30+D27 -> -237.2131062 | E31: -233.1422874 | F31: -238.7060646 | G31: -213.7731166 | H31: =H26-H30+H27 -> -218.3995309 | I31: -217.53887 | J31: -213.8572421 | K31: -218.387745 | L31: -217.53887 | M31: -211.0387052 | N31: -215.3079162
B32: Atmospheric loss (according to contribution SE24(20)063_rev1) | C32: dB | D32: 5.7 | E32: 3.2 | F32: 7.4 | G32: 8.3 | H32: 16 | I32: 13.8 | J32: 8.3 | K32: 15.8 | L32: 13.8 | M32: 8.3 | N32: 14.7
B33: Polarisation mismatch loss | C33: dB | D33: 3 | E33: 3 | F33: 3 | G33: 3 | H33: 3 | I33: 3 | J33: 3 | K33: 3 | L33: 3 | M33: 3 | N33: 3
B34: Tank attenuation (according to clause 2.3 in the Report) | C34: dB | D34: 63.3 | E34: 63.3 | F34: 63.3 | G34: 64.45 | H34: 64.45 | I34: 64.45 | J34: 64.45 | K34: 64.45 | L34: 64.45 | M34: 64.45 | N34: 64.45
B35: Power spectral density at the EESS receiver in a 1 MHz bandwidth | C35: dBW/MHz | D35: =D31+D15-D32-3-D34 -> -255.2131062 | E35: -258.7422874 | F35: -268.5060646 | G35: -244.7231166 | H35: -257.0495309 | I35: -241.88887 | J35: -246.6072421 | K35: -258.637745 | L35: -246.78887 | M35: -236.7887052 | N35: -247.4579162
B36: Corresponding power at the EESS receiver in the reference bandwidth for a single TLPR | C36: dBW | D36: =D35+10*LOG10(D9) -> -232.2028062 | E36: -235.7319875 | F36: -245.4957647 | G36: -221.7128166 | H36: -234.0392309 | I36: -218.8785701 | J36: -223.5969421 | K36: -235.6274451 | L36: -223.7785701 | M36: -213.7784053 | N36: -224.4476162
B37: Number of interferers in EESS FOV on Earth's surface | D37: 1 | E37: 1 | F37: 1 | G37: 1 | H37: 1 | I37: 1 | J37: 1 | K37: 1 | L37: 1 | M37: 1 | N37: 1
B38: Corresponding received power at the EESS in the reference bandwidth within the EESS's FOV | C38: dBW | D38: =D36+10*LOG10(D37) -> -232.2028062 | E38: =E36+10*LOG10(E37) -> -235.7319875 | F38: =F36+10*LOG10(F37) -> -245.4957647 | G38: =G36+10*LOG10(G37) -> -221.7128166 | H38: =H36+10*LOG10(H37) -> -234.0392309 | I38: -218.8785701 | J38: -223.5969421 | K38: -235.6274451 | L38: -223.7785701 | M38: -213.7784053 | N38: -224.4476162
B39: Margin with reference to ITU-R RS.2017-0 | C39: dB | D39: =D17-D18-D38 -> 57.20280624 | E39: =E17-E18-E38 -> 60.73198746 | F39: =F17-F18-F38 -> 70.49576468 | G39: =G17-G18-G38 -> 46.71281662 | H39: =H17-H18-H38 -> 59.03923091 | I39: 43.87857006 | J39: 48.59694211 | K39: 60.62744509 | L39: 48.77857006 | M39: 38.77840527 | N39: 49.4476162
B46: Aggregate interference study | D46: Band of EESS: 164-167 GHz | G46: Band of EESS: 174,8-191,8 GHz
B47: Victim EESS system | D47: Sensor P1 | E47: Sensor P2 (nadir) | F47: Sensor P2 (outer) | G47: MHS (nadir) | H47: MHS (outer) | I47: MWI | J47: MWS (nadir) | K47: MWS (outer) | L47: ICI | M47: AWS (nadir) | N47: AWS (outer)
B48: Sensor type | D48: Conical scan | E48: Nadir scan | F48: Nadir scan | G48: Nadir scan | H48: Nadir scan | I48: Conical scan | J48: Nadir scan | K48: Nadir scan | L48: Conical scan | M48: Nadir scan | N48: Nadir scan
B49: EESS: | C49: Units
B50: Assumed centre frequency of EESS | C50: GHz | D50: 165.5 | E50: 165.5 | F50: 165.5 | G50: 178.4 | H50: 178.4 | I50: 178.4 | J50: 178.4 | K50: 178.4 | L50: 178.4 | M50: 178.4 | N50: 178.4
B51: Wavelength of EESS | C51: m | D51: =2.99792458/D50/10 -> 0.001811434792 | E51: 0.001811434792 | F51: 0.001811434792 | G51: 0.001680450998 | H51: 0.001680450998 | I51: 0.001680450998 | J51: 0.001680450998 | K51: 0.001680450998 | L51: 0.001680450998 | M51: 0.001680450998 | N51: 0.001680450998
B52: Reference bandwidth | C52: MHz | D52: 200 | E52: 200 | F52: 200 | G52: 200 | H52: 200 | I52: 200 | J52: 200 | K52: 200 | L52: 200 | M52: 200 | N52: 200
B53: Orbit altitude | C53: km² | D53: 828 | E53: 824 | F53: 824 | G53: 822 | H53: 822 | I53: 830 | J53: 830 | K53: 830 | L53: 830 | M53: 600 | N53: 600
B54: Angle of incidence at Earth's surface (from zenith) | C54: deg | D54: 55.5 | E54: 0 | F54: 64 | G54: 0 | H54: 59 | I54: 53.3 | J54: 0 | K54: 58.5 | L54: 53.3 | M54: 0 | N54: 55.7
B55: Elevation angle at ground | C55: deg | D55: =90-D54 -> 34.5 | E55: 90 | F55: 26 | G55: 90 | H55: 31 | I55: 36.7 | J55: 90 | K55: 31.5 | L55: 36.7 | M55: 90 | N55: 34.3
B56: Off-nadir angle | C56: deg | D56: =(ASIN(SIN(D54*PI()/180)/(1+D53/6371)))*180/PI()+0.00000001 -> 46.83096782 | E56: 1e-08 | F56: 52.73661527 | G56: 1e-08 | H56: 49.39479043 | I56: 45.18299423 | J56: 1e-08 | K56: 48.96977181 | L56: 45.18299423 | M56: 1e-08 | N56: 49.02495908
B57: Slant path distance | C57: km | D57: =6371*SIN((ASIN(((6371+D53)/6371)*SIN(D56*PI()/180))*180/PI()-D56)*PI()/180)/SIN(D56*PI()/180) -> 1316.643352 | E57: 824 | F57: 1563.565476 | G57: 822 | H57: 1400.207928 | I57: 1268.117481 | J57: 830 | K57: 1398.309283 | L57: 1268.117481 | M57: 600 | N57: 980.8707785
B58: EESS antenna gain | C58: dBi | D58: 54 | E58: 43.9 | F58: 43.9 | G58: 44.8 | H58: 44.8 | I58: 56.9 | J58: 43 | K58: 43 | L58: 52 | M58: 50 | N58: 50
B59: Size of EESS FOV on Earth's surface | C59: km² | D59: 113 | E59: 254 | F59: 2083 | G59: 201 | H59: 1103 | I59: 61 | J59: 315 | K59: 1762 | L59: 164 | M59: 28 | N59: 141
B60: EESS interference criterion in the reference bandwidth (ITU-R RS.2017-0) | C60: dBW | D60: -163 | E60: -163 | F60: -163 | G60: -163 | H60: -163 | I60: -163 | J60: -163 | K60: -163 | L60: -163 | M60: -163 | N60: -163
B61: Apportionment factor | D61: 12 | E61: 12 | F61: 12 | G61: 12 | H61: 12 | I61: 12 | J61: 12 | K61: 12 | L61: 12 | M61: 12 | N61: 12
B63: TLPR system (interferer):
B64: Conducted Tx power of interferer | C64: dBm | D64: 10 | E64: 10 | F64: 10 | G64: 10 | H64: 10 | I64: 10 | J64: 10 | K64: 10 | L64: 10 | M64: 10 | N64: 10
B65: Out-of-band unwanted emissions attenuation (if EESS victim is located in an adjacent band) | C65: dB | D65: 20 | E65: 20 | F65: 20 | G65: 0 | H65: 0 | I65: 0 | J65: 0 | K65: 0 | L65: 0 | M65: 0 | N65: 0
B66: Tx e.i.r.p. of interferer | C66: dBm | D66: =D64-D65+D71 -> 0 | E66: 0 | F66: 0 | G66: 20 | H66: 20 | I66: 20 | J66: 20 | K66: 20 | L66: 20 | M66: 20 | N66: 20
B67: Bandwidth of interferer Tx signal | C67: GHz | D67: 1 | E67: 1 | F67: 1 | G67: 1 | H67: 1 | I67: 1 | J67: 1 | K67: 1 | L67: 1 | M67: 1 | N67: 1
B68: Tx e.i.r.p. spectral density of interferer | C68: dBm/MHz | D68: =D66-10*LOG(D67*1000) -> -30 | E68: -30 | F68: -30 | G68: -10 | H68: -10 | I68: -10 | J68: -10 | K68: -10 | L68: -10 | M68: -10 | N68: -10
B69: Tx e.i.r.p. spectral density of interferer | C69: dBW/MHz | D69: =D68-30 -> -60 | E69: -60 | F69: -60 | G69: -40 | H69: -40 | I69: -40 | J69: -40 | K69: -40 | L69: -40 | M69: -40 | N69: -40
B70: Mitigation technique (e.g. activity factor, adaptive power control) | C70: dB | D70: 0 | E70: 0 | F70: 0 | G70: 0 | H70: 0 | I70: 0 | J70: 0 | K70: 0 | L70: 0 | M70: 0 | N70: 0
B71: Average gain of the interferer antenna in the direction of the victim EESS system | C71: dBi | D71: 10 | E71: 10 | F71: 10 | G71: 10 | H71: 10 | I71: 10 | J71: 10 | K71: 10 | L71: 10 | M71: 10 | N71: 10
B73: Free space loss between interferer and EESS | C73: dB | D73: =20*LOG10(4*PI()*D57*1000/D51) -> 199.2131062 | E73: =20*LOG10(4*PI()*E57*1000/E51) -> 195.1422874 | F73: =20*LOG10(4*PI()*F57*1000/F51) -> 200.7060646 | G73: =20*LOG10(4*PI()*G57*1000/G51) -> 195.7731166 | H73: =20*LOG10(4*PI()*H57*1000/H51) -> 200.3995309 | I73: 199.53887 | J73: 195.8572421 | K73: 200.387745 | L73: 199.53887 | M73: 193.0387052 | N73: 197.3079162
B74: Direct e.i.r.p. spectral density at the EESS antenna | C74: dBW/MHz | D74: =D69-D73+D70 -> -259.2131062 | E74: -255.1422874 | F74: -260.7060646 | G74: -235.7731166 | H74: -240.3995309 | I74: -239.53887 | J74: -235.8572421 | K74: -240.387745 | L74: -239.53887 | M74: -233.0387052 | N74: -237.3079162
B75: Atmospheric loss (according to contribution SE24(20)063_rev1) | C75: dB | D75: 5.7 | E75: 3.2 | F75: 7.4 | G75: 8.3 | H75: 16 | I75: 13.8 | J75: 8.3 | K75: 15.8 | L75: 13.8 | M75: 8.3 | N75: 14.7
B76: Polarisation mismatch loss | C76: dB | D76: 3 | E76: 3 | F76: 3 | G76: 3 | H76: 3 | I76: 3 | J76: 3 | K76: 3 | L76: 3 | M76: 3 | N76: 3
B77: Tank attenuation (according to clause 2.3 in the Report) | C77: dB | D77: 63.3 | E77: 63.3 | F77: 63.3 | G77: 64.45 | H77: 64.45 | I77: 64.45 | J77: 64.45 | K77: 64.45 | L77: 64.45 | M77: 64.45 | N77: 64.45
B78: Power spectral density at the EESS receiver in a 1 MHz bandwidth | C78: dBW/MHz | D78: =D74+D58-D75-D76-D77 -> -277.2131062 | E78: -280.7422874 | F78: -290.5060646 | G78: -266.7231166 | H78: -279.0495309 | I78: -263.88887 | J78: -268.6072421 | K78: -280.637745 | L78: -268.78887 | M78: -258.7887052 | N78: -269.4579162
B79: Corresponding power at the EESS receiver in the reference bandwidth for a single TLPR | C79: dBW | D79: =D78+10*LOG10(D52) -> -254.2028062 | E79: -257.7319875 | F79: -267.4957647 | G79: -243.7128166 | H79: -256.0392309 | I79: -240.8785701 | J79: -245.5969421 | K79: -257.6274451 | L79: -245.7785701 | M79: -235.7784053 | N79: -246.4476162
B80: Uniform TLPR device density (with uniform distribution over Europe) | C80: 1/km² | D80: ='Market Size'!H19 -> 0.003421077639 | E80: ='Market Size'!H19 -> 0.003421077639 | F80: ='Market Size'!H19 -> 0.003421077639 | G80: ='Market Size'!H19 -> 0.003421077639 | H80: ='Market Size'!H19 -> 0.003421077639 | I80: ='Market Size'!H19 -> 0.003421077639 | J80: ='Market Size'!H19 -> 0.003421077639 | K80: ='Market Size'!H19 -> 0.003421077639 | L80: ='Market Size'!H19 -> 0.003421077639 | M80: ='Market Size'!H19 -> 0.003421077639 | N80: ='Market Size'!H19 -> 0.003421077639
B81: Aggregate TLPR device density (uniform distribution weighted with factor 75; acc. to annex 9 in the Report) | C81: 1/km² | D81: =D80*75 -> 0.256580823 | E81: 0.256580823 | F81: 0.256580823 | G81: 0.256580823 | H81: 0.256580823 | I81: 0.256580823 | J81: 0.256580823 | K81: 0.256580823 | L81: 0.256580823 | M81: 0.256580823 | N81: 0.256580823
B82: Number of aggregate TLPR devices in the IFOV and active in the reference BW of the satellite | D82: =ROUNDUP(D81*D59,0) -> 29 | E82: 66 | F82: 535 | G82: 52 | H82: 284 | I82: 16 | J82: 81 | K82: 453 | L82: 43 | M82: 8 | N82: 37
B83: Corresponding received power at the EESS in the reference bandwidth within the EESS's FOV | C83: dBW | D83: =D79+10*LOG10(D82) -> -239.5788263 | E83: -239.5365481 | F83: -240.2122269 | G83: -226.5527832 | H83: -231.5060475 | I83: -228.8373702 | J83: -226.5120919 | K83: -231.0664631 | L83: -229.4438855 | M83: -226.7475054 | N83: -230.765599
B84: Margin with reference to ITU-R RS.2017-0 | C84: dB | D84: =D60-D61-D83 -> 64.57882626 | E84: 64.53654811 | F84: 65.21222686 | G84: 51.55278318 | H84: 56.50604751 | I84: 53.83737023 | J84: 51.51209192 | K84: 56.06646306 | L84: 54.4438855 | M84: 51.7475054 | N84: 55.76559896

Sheet EESS 231,5-250GHz
B1: Compatibility analysis between tank level probing radar in the frequency band 231,5-250 GHz and EESS
B3: Single-entry study | D3: Band of EESS: 226-231,5 GHz | F3: Band of EESS: 239-248 GHz
B4: Victim EESS system | D4: AWS (Nadir) | E4: AWS (outer) | F4: ICI | G4: AWS (Nadir) | H4: AWS (outer)
B5: Sensor type | D5: Nadir scan | E5: Nadir scan | F5: Conical Scan | G5: Nadir Scan | H5: Nadir Scan
B6: EESS: | C6: Units
B7: Assumed centre frequency of EESS | C7: GHz | D7: 228.75 | E7: 228.75 | F7: 243.5 | G7: 243.5 | H7: 243.5
B8: Wavelength of EESS | C8: m | D8: =2.99792458/D7/10 -> 0.001310568122 | E8: 0.001310568122 | F8: 0.001231180526 | G8: 0.001231180526 | H8: 0.001231180526
B9: Reference bandwidth | C9: MHz | D9: 200 | E9: 200 | F9: 200 | G9: 200 | H9: 200
B10: Orbit altitude | C10: km² | D10: 600 | E10: 600 | F10: 830 | G10: 600 | H10: 600
B11: Angle of incidence at Earth's surface (from zenith) | C11: deg | D11: 0 | E11: 55.7 | F11: 53.3 | G11: 0 | H11: 55.7
B12: Elevation angle at ground | C12: deg | D12: =90-D11 -> 90 | E12: 34.3 | F12: 36.7 | G12: 90 | H12: 34.3
B13: Off-nadir angle | C13: deg | D13: =(ASIN(SIN(D11*PI()/180)/(1+D10/6371)))*180/PI()+0.00000001 -> 1e-08 | E13: 49.02495908 | F13: 45.18299423 | G13: 1e-08 | H13: 49.02495908
B14: Slant path distance | C14: km | D14: =6371*SIN((ASIN(((6371+D10)/6371)*SIN(D13*PI()/180))*180/PI()-D13)*PI()/180)/SIN(D13*PI()/180) -> 600 | E14: 980.8707785 | F14: 1268.117481 | G14: 600 | H14: 980.8707785
B15: EESS antenna gain | C15: dBi | D15: 50 | E15: 50 | F15: 52 | G15: 50 | H15: 50
B16: Size of EESS FOV on Earth's surface | C16: km² | D16: 28 | E16: 141 | F16: 164 | G16: 28 | H16: 141
B17: EESS interference criterion in the reference bandwidth (ITU-R RS.2017-0) | C17: dBW | D17: -160 | E17: -160 | F17: -160 | G17: -160 | H17: -160
B18: Apportionment factor | D18: 12 | E18: 12 | F18: 12 | G18: 12 | H18: 12
B20: TLPR system (interferer):
B21: Conducted Tx power of interferer | C21: dBm | D21: 10 | E21: 10 | F21: 10 | G21: 10 | H21: 10
B22: Out-of-band unwanted emissions attenuation (if EESS victim is located in an adjacent band) | C22: dB | D22: 20 | E22: 20 | F22: 0 | G22: 0 | H22: 0
B23: Tx e.i.r.p. of interferer | C23: dBm | D23: =D21-D22+D28 -> 22 | E23: 22 | F23: =F21-F22+F28 -> 42 | G23: 42 | H23: 42
B24: Bandwidth of interferer Tx signal | C24: GHz | D24: 1 | E24: 1 | F24: 1 | G24: 1 | H24: 1
B25: Tx e.i.r.p. spectral density of interferer | C25: dBm/MHz | D25: =D23-10*LOG(D24*1000) -> -8 | E25: -8 | F25: =F23-10*LOG(F24*1000) -> 12 | G25: 12 | H25: 12
B26: Tx e.i.r.p. spectral density of interferer | C26: dBW/MHz | D26: =D25-30 -> -38 | E26: =E25-30 -> -38 | F26: =F25-30 -> -18 | G26: =G25-30 -> -18 | H26: =H25-30 -> -18
B27: Mitigation technique (e.g. activity factor, adaptive power control) | C27: dB | D27: 0 | E27: 0 | F27: 0 | G27: 0 | H27: 0
B28: Gain of the interferer antenna in direction of main radiation | C28: dBi | D28: 32 | E28: 32 | F28: 32 | G28: 32 | H28: 32
B30: Free space loss between interferer and EESS | C30: dB | D30: =20*LOG10(4*PI()*D14*1000/D8) -> 195.1980303 | E30: =20*LOG10(4*PI()*E14*1000/E8) -> 199.4672412 | F30: =20*LOG10(4*PI()*F14*1000/F8) -> 202.2409523 | G30: =20*LOG10(4*PI()*G14*1000/G8) -> 195.7407875 | H30: =20*LOG10(4*PI()*H14*1000/H8) -> 200.0099985
B31: Direct e.i.r.p. spectral density at the EESS antenna | C31: dBW/MHz | D31: =D26-D30+D27 -> -233.1980303 | E31: -237.4672412 | F31: =F26-F30+F27 -> -220.2409523 | G31: -213.7407875 | H31: -218.0099985
B32: Atmospheric loss (according to contribution Doc. SE24(20)WI71#9-3) | C32: dB | D32: 4.8 | E32: 8.5 | F32: 8.8 | G32: 5.3 | H32: 9.3
B33: Polarisation mismatch loss | C33: dB | D33: 3 | E33: 3 | F33: 3 | G33: 3 | H33: 3
B34: Tank attenuation (according to clause 2.3 in the Report) | C34: dB | D34: 68.3 | E34: 68.3 | F34: 69.3 | G34: 69.3 | H34: 69.3
B35: Power spectral density at the EESS receiver in a 1 MHz bandwidth | C35: dBW/MHz | D35: =D31+D15-D32-D33-D34 -> -259.2980303 | E35: =E31+E15-E32-E33-E34 -> -267.2672412 | F35: =F31+F15-F32-F33-F34 -> -249.3409523 | G35: =G31+G15-G32-G33-G34 -> -241.3407875 | H35: =H31+H15-H32-H33-H34 -> -249.6099985
B36: Corresponding power at the EESS receiver in the reference bandwidth for a single TLPR | C36: dBW | D36: =D35+10*LOG10(D9) -> -236.2877303 | E36: =E35+10*LOG10(E9) -> -244.2569413 | F36: =F35+10*LOG10(F9) -> -226.3306524 | G36: =G35+10*LOG10(G9) -> -218.3304876 | H36: =H35+10*LOG10(H9) -> -226.5996985
B37: Number of interferers in EESS FOV on Earth's surface | D37: 1 | E37: 1 | F37: 1 | G37: 1 | H37: 1
B38: Corresponding received power at the EESS in the reference bandwidth within the EESS's FOV | C38: dBW | D38: =D36+10*LOG10(D37) -> -236.2877303 | E38: =E36+10*LOG10(E37) -> -244.2569413 | F38: =F36+10*LOG10(F37) -> -226.3306524 | G38: =G36+10*LOG10(G37) -> -218.3304876 | H38: =H36+10*LOG10(H37) -> -226.5996985
B39: Margin with reference to ITU-R RS.2017-0 | C39: dB | D39: =D17-D18-D38 -> 64.28773033 | E39: =E17-E18-E38 -> 72.25694125 | F39: =F17-F18-F38 -> 54.33065237 | G39: =G17-G18-G38 -> 46.33048758 | H39: =H17-H18-H38 -> 54.59969851
B46: Aggregate interference study | D46: Band of EESS: 226-231,5 GHz | F46: Band of EESS: 239-248 GHz
B47: Victim EESS system | D47: AWS (Nadir) | E47: AWS (outer) | F47: ICI | G47: AWS (Nadir) | H47: AWS (outer)
B48: Sensor type | D48: Nadir scan | E48: Nadir scan | F48: Conical Scan | G48: Nadir Scan | H48: Nadir Scan
B49: EESS: | C49: Units
B50: Assumed centre frequency of EESS | C50: GHz | D50: 228.75 | E50: 228.75 | F50: 243.5 | G50: 243.5 | H50: 243.5
B51: Wavelength of EESS | C51: m | D51: =2.99792458/D50/10 -> 0.001310568122 | E51: 0.001310568122 | F51: 0.001231180526 | G51: 0.001231180526 | H51: 0.001231180526
B52: Reference bandwidth | C52: MHz | D52: 200 | E52: 200 | F52: 200 | G52: 200 | H52: 200
B53: Orbit altitude | C53: km² | D53: 600 | E53: 600 | F53: 830 | G53: 600 | H53: 600
B54: Angle of incidence at Earth's surface (from zenith) | C54: deg | D54: 0 | E54: 55.7 | F54: 53.3 | G54: 0 | H54: 55.7
B55: Elevation angle at ground | C55: deg | D55: =90-D54 -> 90 | E55: 34.3 | F55: 36.7 | G55: 90 | H55: 34.3
B56: Off-nadir angle | C56: deg | D56: =(ASIN(SIN(D54*PI()/180)/(1+D53/6371)))*180/PI()+0.00000001 -> 1e-08 | E56: 49.02495908 | F56: 45.18299423 | G56: 1e-08 | H56: 49.02495908
B57: Slant path distance | C57: km | D57: =6371*SIN((ASIN(((6371+D53)/6371)*SIN(D56*PI()/180))*180/PI()-D56)*PI()/180)/SIN(D56*PI()/180) -> 600 | E57: 980.8707785 | F57: 1268.117481 | G57: 600 | H57: 980.8707785
B58: EESS antenna gain | C58: dBi | D58: 50 | E58: 50 | F58: 52 | G58: 50 | H58: 50
B59: Size of EESS FOV on Earth's surface | C59: km² | D59: 28 | E59: 141 | F59: 164 | G59: 28 | H59: 141
B60: EESS interference criterion in the reference bandwidth (ITU-R RS.2017-0) | C60: dBW | D60: -160 | E60: -160 | F60: -160 | G60: -160 | H60: -160
B61: Apportionment factor | D61: 12 | E61: 12 | F61: 12 | G61: 12 | H61: 12
B63: TLPR system (interferer):
B64: Conducted Tx power of interferer | C64: dBm | D64: 10 | E64: 10 | F64: 10 | G64: 10 | H64: 10
B65: Out-of-band unwanted emissions attenuation (if EESS victim is located in an adjacent band) | C65: dB | D65: 20 | E65: 20 | F65: 0 | G65: 0 | H65: 0
B66: Tx e.i.r.p. of interferer | C66: dBm | D66: =D64-D65+D71 -> 0 | E66: 0 | F66: 20 | G66: 20 | H66: 20
B67: Bandwidth of interferer Tx signal | C67: GHz | D67: 1 | E67: 1 | F67: 1 | G67: 1 | H67: 1
B68: Tx e.i.r.p. spectral density of interferer | C68: dBm/MHz | D68: =D66-10*LOG(D67*1000) -> -30 | E68: -30 | F68: -10 | G68: -10 | H68: -10
B69: Tx e.i.r.p. spectral density of interferer | C69: dBW/MHz | D69: =D68-30 -> -60 | E69: =E68-30 -> -60 | F69: =F68-30 -> -40 | G69: =G68-30 -> -40 | H69: =H68-30 -> -40
B70: Mitigation technique (e.g. activity factor, adaptive power control) | C70: dB | D70: 0 | E70: 0 | F70: 0 | G70: 0 | H70: 0
B71: Average gain of the interferer antenna in the direction of the victim EESS system | C71: dBi | D71: 10 | E71: 10 | F71: 10 | G71: 10 | H71: 10
B73: Free space loss between interferer and EESS | C73: dB | D73: =20*LOG10(4*PI()*D57*1000/D51) -> 195.1980303 | E73: =20*LOG10(4*PI()*E57*1000/E51) -> 199.4672412 | F73: =20*LOG10(4*PI()*F57*1000/F51) -> 202.2409523 | G73: =20*LOG10(4*PI()*G57*1000/G51) -> 195.7407875 | H73: =20*LOG10(4*PI()*H57*1000/H51) -> 200.0099985
B74: Direct e.i.r.p. spectral density at the EESS antenna | C74: dBW/MHz | D74: =D69-D73+D70 -> -255.1980303 | E74: -259.4672412 | F74: -242.2409523 | G74: -235.7407875 | H74: -240.0099985
B75: Atmospheric loss (according to contribution SE24(20)WI71#9-3) | C75: dB | D75: 4.8 | E75: 8.5 | F75: 8.8 | G75: 5.3 | H75: 9.3
B76: Polarisation mismatch loss | C76: dB | D76: 3 | E76: 3 | F76: 3 | G76: 3 | H76: 3
B77: Tank attenuation (according to clause 2.3 in the Report) | C77: dB | D77: 68.3 | E77: 68.3 | F77: 69.3 | G77: 69.3 | H77: 69.3
B78: Power spectral density at the EESS receiver in a 1 MHz bandwidth | C78: dBW/MHz | D78: =D74+D58-D75-D76-D77 -> -281.2980303 | E78: =E74+E58-E75-E76-E77 -> -289.2672412 | F78: =F74+F58-F75-F76-F77 -> -271.3409523 | G78: =G74+G58-G75-G76-G77 -> -263.3407875 | H78: =H74+H58-H75-H76-H77 -> -271.6099985
B79: Corresponding power at the EESS receiver in the reference bandwidth for a single TLPR | C79: dBW | D79: =D78+10*LOG10(D52) -> -258.2877303 | E79: =E78+10*LOG10(E52) -> -266.2569413 | F79: =F78+10*LOG10(F52) -> -248.3306524 | G79: =G78+10*LOG10(G52) -> -240.3304876 | H79: =H78+10*LOG10(H52) -> -248.5996985
B80: Uniform TLPR device density (with uniform distribution over Europe) | C80: 1/km² | D80: ='Market Size'!H20 -> 0.002280718426 | E80: ='Market Size'!H20 -> 0.002280718426 | F80: ='Market Size'!H20 -> 0.002280718426 | G80: ='Market Size'!H20 -> 0.002280718426 | H80: ='Market Size'!H20 -> 0.002280718426
B81: Aggregate TLPR device density (uniform distribution weighted with factor 75; acc. to annex 9 in the Report) | C81: 1/km² | D81: =D80*75 -> 0.171053882 | E81: =E80*75 -> 0.171053882 | F81: =F80*75 -> 0.171053882 | G81: =G80*75 -> 0.171053882 | H81: =H80*75 -> 0.171053882
B82: Number of aggregate TLPR devices in the IFOV and active in the reference BW of the satellite | C82: 1/km² | D82: =ROUNDUP(D81*D59,0) -> 5 | E82: =ROUNDUP(E81*E59,0) -> 25 | F82: =ROUNDUP(F81*F59,0) -> 29 | G82: =ROUNDUP(G81*G59,0) -> 5 | H82: =ROUNDUP(H81*H59,0) -> 25
B83: Corresponding received power at the EESS in the reference bandwidth within the EESS's FOV | C83: dBW | D83: =D79+10*LOG10(D82) -> -251.2980303 | E83: =E79+10*LOG10(E82) -> -252.2775412 | F83: =F79+10*LOG10(F82) -> -233.7066724 | G83: =G79+10*LOG10(G82) -> -233.3407875 | H83: =H79+10*LOG10(H82) -> -234.6202984
B84: Margin with reference to ITU-R RS.2017-0 | C84: dB | D84: =D60-D61-D83 -> 79.29803028 | E84: =E60-E61-E83 -> 80.27754116 | F84: =F60-F61-F83 -> 61.70667239 | G84: =G60-G61-G83 -> 61.34078754 | H84: =H60-H61-H83 -> 62.62029842

Sheet RAS 116-148,5GHz
B1: Compatibility analysis between tank level probing radar in the frequency band 116-148,5 GHz and RAS
B5: Victim RAS system | D5: Band of RAS system: 76-116 GHz | F5: Band of RAS system: 123-158,5 GHz
B6: Sensor type | D6: Continuum observation | E6: Spectral-line observation | F6: Continuum observation | G6: Spectral-line observation
B7: RAS: | C7: Units
B8: Assumed centre frequency of RAS | C8: GHz | D8: 96 | E8: 96 | F8: 135.75 | G8: 135.75
B9: Wavelength of RAS | C9: m | D9: =2.99792458/D8/10 -> 0.003122838104 | E9: 0.003122838104 | F9: =2.99792458/F8/10 -> 0.002208415897 | G9: 0.002208415897
B10: Bandwidth (ITU-R RA.769-2 ) | C10: MHz | D10: 8000 | E10: 1 | F10: 8000 | G10: 1
B11: Antenna gain in the direction of interferer (ITU-R RA.769-2 ) | C11: dBi | D11: 0 | E11: 0 | F11: 0 | G11: 0
B12: Feeder (insertion) loss | C12: dB | D12: 0 | E12: 0 | F12: 0 | G12: 0
B13: Threshold Interference level at receiver input (ITU-R RA.769-2 ) | C13: dBW | D13: -184.5 | E13: -209 | F13: -189.5 | G13: -209
B14: Threshold Interference level at receiver input | C14: dBm | D14: =D13+30 -> -154.5 | E14: -179 | F14: =F13+30 -> -159.5 | G14: -179
B16: TLPR system (interferer):
B17: Conducted Tx power of interferer | C17: dBm | D17: 10 | E17: 10 | F17: 10 | G17: 10
B18: Out-of-band unwanted emissions attenuation (if RAS victim is located in an adjacent band) | C18: dB | D18: 20 | E18: 20 | F18: 0 | G18: 0
B19: Tx e.i.r.p. of interferer | C19: dBm | D19: =D17-D18+D25 -> 22 | E19: =E17-E18+E25 -> 22 | F19: =F17-F18+F25 -> 42 | G19: =G17-G18+G25 -> 42
B20: Bandwidth of interferer Tx signal | C20: GHz | D20: 1 | E20: 1 | F20: 1 | G20: 1
B21: Mitigation technique (e.g. activity factor, adaptive power control) | C21: dB | D21: 0 | E21: 0 | F21: 0 | G21: 0
B22: Tx e.i.r.p. spectral density of interferer | C22: dBm/MHz | D22: =D19-10*LOG(D20*1000) -> -8 | E22: -8 | F22: =F19-10*LOG(F20*1000) -> 12 | G22: 12
B23: Tx e.i.r.p. spectral density of interferer with mitigation | C23: dBm/MHz | D23: =D19+D21-10*LOG(D20*1000) -> -8 | E23: -8 | F23: =F19+F21-10*LOG(F20*1000) -> 12 | G23: 12
B24: Tx e.i.r.p. of interferer with mitigation | C24: dBm | D24: =D19+D21 -> 22 | E24: =E19+E21 -> 22 | F24: =F19+F21 -> 42 | G24: =G19+G21 -> 42
B25: Gain of interferer antenna in the direction of main radiation | C25: dBi | D25: 32 | E25: 32 | F25: 32 | G25: 32
B27: Tank attenuation (according to clause 2.3 in the Report) | C27: dB | D27: 55.6 | E27: 55.6 | F27: 60.4 | G27: 60.4
B28: Total e.i.r.p. towards RAS | C28: dBm | D28: =D24-D27 -> -33.6 | E28: =E24-E27 -> -33.6 | F28: =F24-F27 -> -18.4 | G28: =G24-G27 -> -18.4
B29: BWCF | C29: dB | D29: =IF(D20*1000<=D10, 0, 10*LOG10(D10/D20/1000)) -> 0 | E29: =IF(E20*1000<=E10, 0, 10*LOG10(E10/E20/1000)) -> -30 | F29: =IF(F20*1000<=F10, 0, 10*LOG10(F10/F20/1000)) -> 0 | G29: =IF(G20*1000<=G10, 0, 10*LOG10(G10/G20/1000)) -> -30
B32: Separation distance calculation:
B33: Minimum coupling loss (MCL) | C33: dB | D33: =D28-(D14-D11+D12)+D29 -> 120.9 | E33: =E28-(E14-E11+E12)+E29 -> 115.4 | F33: =F28-(F14-F11+F12)+F29 -> 141.1 | G33: =G28-(G14-G11+G12)+G29 -> 130.6
B34: Separation distance with FSL model | C34: km | D34: =10^((D33-32.44-20*LOG10(D8*1000))/20) -> 0.2758854311 | E34: =10^((E33-32.44-20*LOG10(E8*1000))/20) -> 0.1464632838 | F34: =10^((F33-32.44-20*LOG10(F8*1000))/20) -> 1.996457924 | G34: =10^((G33-32.44-20*LOG10(G8*1000))/20) -> 0.5960190786
B35: Specific attenuation due to atmospheric gases (acc. to ITU-R P.835-6 winter high latitude model) | C35: dB/km | D35: 0.06 | E35: 0.06 | F35: 0.1 | G35: 0.1
B36: Separation distance adjusted for attenuation due to atmospheric gases | C36: km | D36: 0.2753360994 | E36: 0.146313043 | F36: 1.951961123 | G36: 0.5919623482
B37: Balance check (should be close to zero) | C37: dB | D37: =D33-20*LOG10(D36)-D36*D35-32.44-20*LOG10(D8*1000) -> 0.0007920621581 | E37: =E33-20*LOG10(E36)-E36*E35-32.44-20*LOG10(E8*1000) -> 0.000135698424 | F37: =F33-20*LOG10(F36)-F36*F35-32.44-20*LOG10(F8*1000) -> 0.0005838513613 | G37: =G33-20*LOG10(G36)-G36*G35-32.44-20*LOG10(G8*1000) -> 0.0001253140474
D38: Note 2 | F38: Note 1
B40: Note 1: A power spectral density of 12dBm/MHz in the whole RAS bandwidth of 8GHz would result in a separation distance of 5.3km. Therefore, a separation distance of at least 5.3km should be considered in order to protect RAS.
B42: Note 2: A power spectral density of 12dBm/MHz in the whole RAS bandwidth of 8GHz would result in a separation distance of 0.8km. Therefore, a separation distance of at least 0.8km should be considered in order to protect RAS.

Sheet RAS 167-182GHz
B1: Compatibility analysis between tank level probing radar in the frequency band 167-182 GHz and RAS
B5: Victim RAS system | D5: Band of RAS system: 164-174,5 GHz | F5: Band of RAS system: 182-185 GHz
B6: Sensor type | D6: Continuum observation | E6: Spectral-line observation | F6: Continuum observation | G6: Spectral-line observation
B7: RAS: | C7: Units
B8: Assumed centre frequency of RAS | C8: GHz | D8: 170.75 | E8: 170.75 | F8: 183.5 | G8: 183.5
B9: Wavelength of RAS | C9: m | D9: =2.99792458/D8/10 -> 0.001755739139 | E9: 0.001755739139 | F9: 0.001633746365 | G9: 0.001633746365
B10: Bandwidth (ITU-R RA.769-2 ) | C10: MHz | D10: 8000 | E10: 1 | F10: 8000 | G10: 1
B11: Antenna gain in the direction of interferer (ITU-R RA.769-2 ) | C11: dBi | D11: 0 | E11: 0 | F11: 0 | G11: 0
B12: Feeder (insertion) loss | C12: dB | D12: 0 | E12: 0 | F12: 0 | G12: 0
B13: Threshold Interference level at receiver input (ITU-R RA.769-2 ) | C13: dBW | D13: -189.1 | E13: -209 | F13: -182.4 | G13: -209
B14: Threshold Interference level at receiver input | C14: dBm | D14: =D13+30 -> -159.1 | E14: -179 | F14: -152.4 | G14: -179
B16: TLPR system (interferer):
B17: Conducted Tx power of interferer | C17: dBm | D17: 10 | E17: 10 | F17: 10 | G17: 10
B18: Out-of-band unwanted emissions attenuation (if RAS victim is located in an adjacent band) | C18: dB | D18: 0 | E18: 0 | F18: 20 | G18: 20
B19: Tx e.i.r.p. of interferer | C19: dBm | D19: =D17-D18+D25 -> 42 | E19: =E17-E18+E25 -> 42 | F19: =F17-F18+F25 -> 22 | G19: =G17-G18+G25 -> 22
B20: Bandwidth of interferer Tx signal | C20: GHz | D20: 1 | E20: 1 | F20: 1 | G20: 1
B21: Mitigation technique (e.g. activity factor, adaptive power control) | C21: dB | D21: 0 | E21: 0 | F21: 0 | G21: 0
B22: Tx e.i.r.p. spectral density of interferer | C22: dBm/MHz | D22: =D19-10*LOG(D20*1000) -> 12 | E22: 12 | F22: -8 | G22: -8
B23: Tx e.i.r.p. spectral density of interferer with mitigation | C23: dBm/MHz | D23: =D19+D21-10*LOG(D20*1000) -> 12 | E23: 12 | F23: -8 | G23: -8
B24: Tx e.i.r.p. of interferer with mitigation | C24: dBm | D24: =D19+D21 -> 42 | E24: =E19+E21 -> 42 | F24: =F19+F21 -> 22 | G24: =G19+G21 -> 22
B25: Gain of interferer antenna in the direction of main radiation | C25: dBi | D25: 32 | E25: 32 | F25: 32 | G25: 32
B27: Tank attenuation (according to clause 2.3 in the Report) | C27: dB | D27: 63.8 | E27: 63.8 | F27: 64.9 | G27: 64.9
B28: Total e.i.r.p. towards RAS | C28: dBm | D28: =D24-D27 -> -21.8 | E28: =E24-E27 -> -21.8 | F28: =F24-F27 -> -42.9 | G28: =G24-G27 -> -42.9
B29: BWCF | C29: dB | D29: =IF(D20*1000<=D10, 0, 10*LOG10(D10/D20/1000)) -> 0 | E29: =IF(E20*1000<=E10, 0, 10*LOG10(E10/E20/1000)) -> -30 | F29: =IF(F20*1000<=F10, 0, 10*LOG10(F10/F20/1000)) -> 0 | G29: =IF(G20*1000<=G10, 0, 10*LOG10(G10/G20/1000)) -> -30
B32: Separation distance calculation:
B33: Minimum coupling loss (MCL) | C33: dB | D33: =D28-(D14-D11+D12)+D29 -> 137.3 | E33: =E28-(E14-E11+E12)+E29 -> 127.2 | F33: =F28-(F14-F11+F12)+F29 -> 109.5 | G33: =G28-(G14-G11+G12)+G29 -> 106.1
B34: Separation distance with FSL model | C34: km | D34: =10^((D33-32.44-20*LOG10(D8*1000))/20) -> 1.024800403 | E34: =10^((E33-32.44-20*LOG10(E8*1000))/20) -> 0.3203607396 | F34: =10^((F33-32.44-20*LOG10(F8*1000))/20) -> 0.03884757657 | G34: =10^((G33-32.44-20*LOG10(G8*1000))/20) -> 0.02626418516
B35: Specific attenuation due to atmospheric gases (acc. to ITU-R P.835-6 winter high latitude model) | C35: dB/km | D35: 0.21 | E35: 0.21 | F35: 3.55 | G35: 3.55
B36: Separation distance adjusted for attenuation due to atmospheric gases | C36: km | D36: 1.000249275 | E36: 0.317903355 | F36: 0.03824225747 | G36: 0.02598635741
B37: Balance check (should be close to zero) | C37: dB | D37: =D33-20*LOG10(D36)-D36*D35-32.44-20*LOG10(D8*1000) -> 0.0005684974947 | E37: =E33-20*LOG10(E36)-E36*E35-32.44-20*LOG10(E8*1000) -> 0.0001238215456 | F37: =F33-20*LOG10(F36)-F36*F35-32.44-20*LOG10(F8*1000) -> 0.000648192427 | G37: =G33-20*LOG10(G36)-G36*G35-32.44-20*LOG10(G8*1000) -> 0.0001189116245
D38: Note 1 | F38: Note 2
B40: Note 1: A power spectral density of 12dBm/MHz in the whole RAS bandwidth of 8GHz would result in a separation distance of 2.7km. Therefore, a separation distance of at least 2.7km should be considered in order to protect RAS.
B42: Note 2: A power spectral density of 12dBm/MHz in the whole RAS bandwidth of 8GHz would result in a separation distance of 0.1km. Therefore, a separation distance of at least 0.1km should be considered in order to protect RAS.

Sheet RAS 231,5-250GHz
B1: Compatibility analysis between tank level probing radar in the frequency band 231,5-250 GHz and RAS
B5: Victim RAS system | D5: Band of RAS system: 190-231,5 GHz | F5: Band of RAS system: 235-238 GHz | H5: Band of RAS system: 241-275 GHz
B6: Sensor type | D6: Continuum observation | E6: Spectral-line observation | F6: Continuum observation | G6: Spectral-line observation | H6: Continuum observation | I6: Spectral-line observation
B7: RAS: | C7: Units
B8: Assumed centre frequency of RAS | C8: GHz | D8: 210.75 | E8: 210.75 | F8: 236.5 | G8: 236.5 | H8: 245.5 | I8: 245.5
B9: Wavelength of RAS | C9: m | D9: =2.99792458/D8/10 -> 0.001422502766 | E9: 0.001422502766 | F9: 0.001267621387 | G9: 0.001267621387 | H9: =2.99792458/H8/10 -> 0.001221150542 | I9: 0.001221150542
B10: Bandwidth (ITU-R RA.769-2 ) | C10: MHz | D10: 8000 | E10: 1 | F10: 8000 | G10: 1 | H10: 8000 | I10: 1
B11: Antenna gain in the direction of interferer (ITU-R RA.769-2 ) | C11: dBi | D11: 0 | E11: 0 | F11: 0 | G11: 0 | H11: 0 | I11: 0
B12: Feeder (insertion) loss | C12: dB | D12: 0 | E12: 0 | F12: 0 | G12: 0 | H12: 0 | I12: 0
B13: Threshold Interference level at receiver input (ITU-R RA.769-2 ) | C13: dBW | D13: -187.8 | E13: -207 | F13: -187.8 | G13: -207 | H13: -186.8 | I13: -207
B14: Threshold Interference level at receiver input | C14: dBm | D14: =D13+30 -> -157.8 | E14: -177 | F14: -157.8 | G14: -177 | H14: =H13+30 -> -156.8 | I14: -177
B16: TLPR system (interferer):
B17: Conducted Tx power of interferer | C17: dBm | D17: 10 | E17: 10 | F17: 10 | G17: 10 | H17: 10 | I17: 10
B18: Out-of-band unwanted emissions attenuation (if RAS victim is located in an adjacent band) | C18: dB | D18: 20 | E18: 20 | F18: 0 | G18: 0 | H18: 0 | I18: 0
B19: Tx e.i.r.p. of interferer | C19: dBm | D19: =D17-D18+D25 -> 22 | E19: 22 | F19: 42 | G19: 42 | H19: 42 | I19: 42
B20: Bandwidth of interferer Tx signal | C20: GHz | D20: 1 | E20: 1 | F20: 1 | G20: 1 | H20: 1 | I20: 1
B21: Mitigation technique (e.g. activity factor, adaptive power control) | C21: dB | D21: 0 | E21: 0 | F21: 0 | G21: 0 | H21: 0 | I21: 0
B22: Tx e.i.r.p. spectral density of interferer | C22: dBm/MHz | D22: =D19-10*LOG(D20*1000) -> -8 | E22: -8 | F22: 12 | G22: 12 | H22: =H19-10*LOG(H20*1000) -> 12 | I22: 12
B23: Tx e.i.r.p. spectral density of interferer with mitigation | C23: dBm/MHz | D23: =D19+D21-10*LOG(D20*1000) -> -8 | E23: -8 | F23: 12 | G23: 12 | H23: =H19+H21-10*LOG(H20*1000) -> 12 | I23: 12
B24: Tx e.i.r.p. of interferer with mitigation | C24: dBm | D24: =D19+D21 -> 22 | E24: 22 | F24: 42 | G24: 42 | H24: 42 | I24: 42
B25: Gain of interferer antenna in the direction of main radiation | C25: dBi | D25: 32 | E25: 32 | F25: 32 | G25: 32 | H25: 32 | I25: 32
B27: Tank attenuation (according to clause 2.3 in the Report) | C27: dB | D27: 67 | E27: 67 | F27: 68.9 | G27: 68.9 | H27: 69.5 | I27: 69.5
B28: Total e.i.r.p. towards RAS | C28: dBm | D28: =D24-D27 -> -45 | E28: -45 | F28: -26.9 | G28: -26.9 | H28: -27.5 | I28: -27.5
B29: BWCF | C29: dB | D29: =IF(D20*1000<=D10, 0, 10*LOG10(D10/D20/1000)) -> 0 | E29: -30 | F29: 0 | G29: -30 | H29: 0 | I29: -30
B32: Separation distance calculation:
B33: Minimum coupling loss (MCL) | C33: dB | D33: =D28-(D14-D11+D12)+D29 -> 112.8 | E33: 102 | F33: 130.9 | G33: 120.1 | H33: 129.3 | I33: 119.5
B34: Separation distance with FSL model | C34: km | D34: =10^((D33-32.44-20*LOG10(D8*1000))/20) -> 0.04945752927 | E34: 0.01426370725 | F34: 0.354135003 | G34: 0.1021336505 | H34: 0.2837582542 | I34: 0.09182237117
B35: Specific attenuation due to atmospheric gases (acc. to ITU-R P.835-6 winter high latitude model) | C35: dB/km | D35: 0.25 | E35: 0.25 | F35: 0.27 | G35: 0.27 | H35: 0.29 | I35: 0.29
B36: Separation distance adjusted for attenuation due to atmospheric gases | C36: km | D36: 0.04938274857 | E36: 0.0142576305 | F36: 0.350271985 | G36: 0.1018093912 | H36: 0.2810847082 | I36: 0.09154077076
B37: Balance check (should be close to zero) | C37: dB | D37: =D33-20*LOG10(D36)-D36*D35-32.44-20*LOG10(D8*1000) -> 0.0007974776167 | E37: 0.0001368169177 | F37: 0.0006955918613 | G37: 0.0001317550934 | H37: 0.0007111172768 | I37: 0.0001319510064
D38: Note 1 | F38: Note 2 | H38: Note 3
B40: Note 1: A power spectral density of 12dBm/MHz in the whole RAS bandwidth of 8GHz would result in a separation distance of 0.2km. Therefore, a separation distance of at least 0.2km should be considered in order to protect RAS.
B42: Note 2: A power spectral density of 12dBm/MHz in the whole RAS bandwidth of 8GHz would result in a separation distance of 1km. Therefore, a separation distance of at least 1km should be considered in order to protect RAS.
B44: Note 3: A power spectral density of 12dBm/MHz in the whole RAS bandwidth of 8GHz would result in a separation distance of 0.8km. Therefore, a separation distance of at least 0.8km should be considered in order to protect RAS.

Sheet FS 116-148,5GHz
B1: Compatibility analysis between tank level probing radar in the frequency band 116-148,5 GHz and Fixed Service (FS) Systems
B3: Scenario 1: Light pole connected to a building by means of an FS link – FS Rx on building (TLPR main beam points exactly towards FS receiver). See Report Figure 52.
B5: Victim Fixed Service (FS) system | D5: Band of FS system: 111,8-114,25 GHz | E5: Band of FS system: 111,8-114,25 GHz | F5: Band of FS system: 130-134 GHz | G5: Band of FS system: 130-134 GHz | H5: Band of FS system: 141-148,5 GHz | I5: Band of FS system: 141-148,5 GHz
B6: Sensor type | D6: Point-to-point (PP) | E6: Point-to-point (PP) | F6: Point-to-point (PP) | G6: Point-to-point (PP) | H6: Point-to-point (PP) | I6: Point-to-point (PP)
B7: FS: | C7: Units
B8: Assumed centre frequency of FS system | C8: GHz | D8: 113.025 | E8: 113.025 | F8: 132 | G8: 132 | H8: 144.75 | I8: 144.75
B9: Wavelength of FS system | C9: m | D9: =2.99792458/D8/10 -> 0.002652443778 | E9: 0.002652443778 | F9: 0.002271154985 | G9: 0.002271154985 | H9: 0.002071105064 | I9: 0.002071105064
B10: Receiver noise bandwidth (ITU-R-F.758-6) | C10: MHz | D10: 1000 | E10: 1000 | F10: 1000 | G10: 1000 | H10: 1000 | I10: 1000
B11: Receiver noise figure (ITU-R-F.758-6) | C11: dB | D11: 12 | E11: 12 | F11: 14 | G11: 14 | H11: 14 | I11: 14
B12: Misalignment of antenna main beam towards TLPR (angle δ in Figure 52 in the Report) | C12: ° | D12: 0.19 | E12: 0.19 | F12: 0.19 | G12: 0.19 | H12: 0.19 | I12: 0.19
B13: Antenna gain in the direction of interferer (ITU-R-F.758-6) | C13: dBi | D13: 43 | E13: 43 | F13: 43 | G13: 43 | H13: 43 | I13: 43
B14: Feeder (insertion) loss (ITU-R-F.758-6) | C14: dB | D14: 0 | E14: 0 | F14: 0 | G14: 0 | H14: 0 | I14: 0
B15: I/N criterion (ITU-R F.758-6 ) | C15: dB | D15: -20 | E15: 5 | F15: -20 | G15: 5 | H15: -20 | I15: 5
B16: Receiver noise power density typical (ITU-R-F.758-6) | C16: dBW/MHz | D16: -132 | E16: -132 | F16: -130 | G16: -130 | H16: -130 | I16: -130
B17: Nominal long-term interference power density threshold (ITU-R-F.758-6) | C17: dBW/MHz | D17: =D16+D15 -> -152 | E17: -127 | F17: -150 | G17: -125 | H17: -150 | I17: -125
B18: Interference threshold at receiver input within IF bandwidth | C18: dBm | D18: =D17+10*LOG10(D10)+30 -> -92 | E18: -67 | F18: -90 | G18: -65 | H18: -90 | I18: -65
B19: (Receiver noise power density calculated over NF) | C19: dBW/MHz | D19: =-113.83+D11-30 -> -131.83 | E19: -131.83 | F19: -129.83 | G19: -129.83 | H19: -129.83 | I19: -129.83
B21: Radiodetermination system (interferer):
B22: Conducted Tx power of interferer | C22: dBm | D22: 10 | E22: 10 | F22: 10 | G22: 10 | H22: 10 | I22: 10
B23: Out-of-band unwanted emissions attenuation (if FS victim is located in an adjacent band) | C23: dB | D23: 20 | E23: 20 | F23: 0 | G23: 0 | H23: 0 | I23: 0
B24: Tx e.i.r.p. of interferer | C24: dBm | D24: =D22-D23+D30 -> 22 | E24: 22 | F24: 42 | G24: 42 | H24: 42 | I24: 42
B25: Bandwidth of interferer Tx signal | C25: GHz | D25: 1 | E25: 1 | F25: 1 | G25: 1 | H25: 1 | I25: 1
B26: Mitigation technique (e.g. activity factor, adaptive power control) | C26: dB | D26: 0 | E26: 0 | F26: 0 | G26: 0 | H26: 0 | I26: 0
B27: Tx e.i.r.p. spectral density of interferer | C27: dBm/MHz | D27: =D24-10*LOG(D25*1000) -> -8 | E27: -8 | F27: 12 | G27: 12 | H27: 12 | I27: 12
B28: Tx e.i.r.p. spectral density of interferer with mitigation | C28: dBm/MHz | D28: =D24+D26-10*LOG(D25*1000) -> -8 | E28: -8 | F28: 12 | G28: 12 | H28: 12 | I28: 12
B29: Tx e.i.r.p. of interferer with mitigation | C29: dBm | D29: =D24+D26 -> 22 | E29: 22 | F29: 42 | G29: 42 | H29: 42 | I29: 42
B30: Gain of interferer antenna in direction of main radiation | C30: dBi | D30: 32 | E30: 32 | F30: 32 | G30: 32 | H30: 32 | I30: 32
B32: Tank attenuation (according to clause 2.3 in the Report) | C32: dB | D32: 57.8 | E32: 57.8 | F32: 60 | G32: 60 | H32: 61.3 | I32: 61.3
B33: Total e.i.r.p. towards FS system | C33: dBm | D33: =D29-D32 -> -35.8 | E33: -35.8 | F33: -18 | G33: -18 | H33: -19.3 | I33: -19.3
B34: BWCF | C34: dB | D34: =IF(D25*1000<=D10, 0, 10*LOG10(D10/D25/1000)) -> 0 | E34: 0 | F34: =IF(F25*1000<=F10, 0, 10*LOG10(F10/F25/1000)) -> 0 | G34: 0 | H34: =IF(H25*1000<=H10, 0, 10*LOG10(H10/H25/1000)) -> 0 | I34: 0
B37: Separation distance calculation:
B38: Minimum coupling loss (MCL) | C38: dB | D38: =D33-(D18-D13+D14)+D34 -> 99.2 | E38: 74.2 | F38: 115 | G38: 90 | H38: 113.7 | I38: 88.7
B39: Separation distance with FSL model | C39: km | D39: =10^((D38-32.44-20*LOG10(D8*1000))/20) -> 0.01926750517 | E39: 0.001083491439 | F39: 0.1017246183 | G39: 0.005720395664 | H39: 0.07986958495 | I39: 0.004491396824
B40: Specific attenuation due to atmospheric gases (ITU-R P.676-11 figure 5) | C40: dB/km | D40: 0.4 | E40: 0.4 | F40: 0.8 | G40: 0.8 | H40: 1 | I40: 1
B41: Separation distance adjusted for attenuation due to atmospheric gases | C41: km | D41: 0.01925013082 | E41: 0.001083520689 | F41: 0.1007833243 | G41: 0.005717841343 | H41: 0.07914402905 | I41: 0.004489434851
B42: Balance check (should be close to zero) | C42: dB | D42: =D38-20*LOG10(D41)-D41*D40-32.44-20*LOG10(D8*1000) -> 0.000135929094 | E42: -0.0006678904717 | F42: 0.0001211277077 | G42: -0.0006949077622 | H42: 0.000121413098 | I42: -0.0006943548606
D43: Long term interference criterion | E43: Peak power objective | F43: Long term interference criterion | G43: Peak power objective | H43: Long term interference criterion | I43: Peak power objective
B47: Scenario 2: Light pole connected to a building by means of an FS link – FS Rx at light pole (TLPR main beam points exactly towards FS receiver). See Report Figure 53.
B49: Victim Fixed Service (FS) system | D49: Band of FS system: 111,8-114,25 GHz | E49: Band of FS system: 111,8-114,25 GHz | F49: Band of FS system: 130-134 GHz | G49: Band of FS system: 130-134 GHz | H49: Band of FS system: 141-148,5 GHz | I49: Band of FS system: 141-148,5 GHz
B50: Sensor type | D50: Point-to-point (PP) | E50: Point-to-point (PP) | F50: Point-to-point (PP) | G50: Point-to-point (PP) | H50: Point-to-point (PP) | I50: Point-to-point (PP)
B51: FS: | C51: Units
B52: Assumed centre frequency of FS system | C52: GHz | D52: 113.025 | E52: 113.025 | F52: 132 | G52: 132 | H52: 144.75 | I52: 144.75
B53: Wavelength of FS system | C53: m | D53: =2.99792458/D52/10 -> 0.002652443778 | E53: 0.002652443778 | F53: 0.002271154985 | G53: 0.002271154985 | H53: 0.002071105064 | I53: 0.002071105064
B54: Receiver noise bandwidth (ITU-R-F.758-6) | C54: MHz | D54: 1000 | E54: 1000 | F54: 1000 | G54: 1000 | H54: 1000 | I54: 1000
B55: Receiver noise figure (ITU-R-F.758-6) | C55: dB | D55: 12 | E55: 12 | F55: 14 | G55: 14 | H55: 14 | I55: 14
B56: Misalignment of antenna main beam towards TLPR (angle α in Figure 53 in the Report) | C56: ° | D56: 3.62 | E56: 3.62 | F56: 3.62 | G56: 3.62 | H56: 3.62 | I56: 3.62
B57: Antenna gain in the direction of interferer (ITU-R-F.758-6) | C57: dBi | D57: 22 | E57: 22 | F57: 22 | G57: 22 | H57: 22 | I57: 22
B58: Feeder (insertion) loss (ITU-R-F.758-6) | C58: dB | D58: 0 | E58: 0 | F58: 0 | G58: 0 | H58: 0 | I58: 0
B59: I/N criterion (ITU-R F.758-6 ) | C59: dB | D59: -20 | E59: 5 | F59: -20 | G59: 5 | H59: -20 | I59: 5
B60: Receiver noise power density typical (ITU-R-F.758-6) | C60: dBW/MHz | D60: -132 | E60: -132 | F60: -130 | G60: -130 | H60: -130 | I60: -130
B61: Nominal long-term interference power density threshold (ITU-R-F.758-6) | C61: dBW/MHz | D61: =D60+D59 -> -152 | E61: -127 | F61: -150 | G61: -125 | H61: -150 | I61: -125
B62: Interference threshold at receiver input within IF bandwidth | C62: dBm | D62: =D61+10*LOG10(D54)+30 -> -92 | E62: -67 | F62: -90 | G62: -65 | H62: -90 | I62: -65
B63: (Receiver noise power density calculated over NF) | C63: dBW/MHz | D63: =-113.83+D55-30 -> -131.83 | E63: -131.83 | F63: -129.83 | G63: -129.83 | H63: -129.83 | I63: -129.83
B65: Radiodetermination system (interferer):
B66: Conducted Tx power of interferer | C66: dBm | D66: 10 | E66: 10 | F66: 10 | G66: 10 | H66: 10 | I66: 10
B67: Out-of-band unwanted emissions attenuation (if FS victim is located in an adjacent band) | C67: dB | D67: 20 | E67: 20 | F67: 0 | G67: 0 | H67: 0 | I67: 0
B68: Tx e.i.r.p. of interferer | C68: dBm | D68: =D66-D67+D74 -> 22 | E68: 22 | F68: 42 | G68: 42 | H68: 42 | I68: 42
B69: Bandwidth of interferer Tx signal | C69: GHz | D69: 1 | E69: 1 | F69: 1 | G69: 1 | H69: 1 | I69: 1
B70: Mitigation technique (e.g. activity factor, adaptive power control) | C70: dB | D70: 0 | E70: 0 | F70: 0 | G70: 0 | H70: 0 | I70: 0
B71: Tx e.i.r.p. spectral density of interferer | C71: dBm/MHz | D71: =D68-10*LOG(D69*1000) -> -8 | E71: -8 | F71: 12 | G71: 12 | H71: 12 | I71: 12
B72: Tx e.i.r.p. spectral density of interferer with mitigation | C72: dBm/MHz | D72: =D68+D70-10*LOG(D69*1000) -> -8 | E72: -8 | F72: 12 | G72: 12 | H72: 12 | I72: 12
B73: Tx e.i.r.p. of interferer with mitigation | C73: dBm | D73: =D68+D70 -> 22 | E73: 22 | F73: 42 | G73: 42 | H73: 42 | I73: 42
B74: Gain of interferer antenna in direction of main radiation | C74: dBi | D74: 32 | E74: 32 | F74: 32 | G74: 32 | H74: 32 | I74: 32
B76: Tank attenuation (according to clause 2.3 in the Report) | C76: dB | D76: 57.8 | E76: 57.8 | F76: 60 | G76: 60 | H76: 61.3 | I76: 61.3
B77: Total e.i.r.p. towards FS system | C77: dBm | D77: =D73-D76 -> -35.8 | E77: -35.8 | F77: -18 | G77: -18 | H77: -19.3 | I77: -19.3
B78: BWCF | C78: dB | D78: =IF(D69*1000<=D54, 0, 10*LOG10(D54/D69/1000)) -> 0 | E78: 0 | F78: =IF(F69*1000<=F54, 0, 10*LOG10(F54/F69/1000)) -> 0 | G78: 0 | H78: =IF(H69*1000<=H54, 0, 10*LOG10(H54/H69/1000)) -> 0 | I78: 0
B81: Separation distance calculation:
B82: Minimum coupling loss (MCL) | C82: dB | D82: =D77-(D62-D57+D58)+D78 -> 78.2 | E82: 53.2 | F82: 94 | G82: 69 | H82: 92.7 | I82: 67.7
B83: Separation distance with FSL model | C83: km | D83: =10^((D82-32.44-20*LOG10(D52*1000))/20) -> 0.001717218206 | E83: 9.656627617e-05 | F83: 0.009066216146 | G83: 0.0005098308002 | H83: 0.007118384252 | I83: 0.0004002961633
B84: Specific attenuation due to atmospheric gases (ITU-R P.676-11 figure 5) | C84: dB/km | D84: 0.4 | E84: 0.4 | F84: 0.8 | G84: 0.8 | H84: 1 | I84: 1
B85: Separation distance adjusted for attenuation due to atmospheric gases | C85: km | D85: 0.001717055256 | E85: 9.657324371e-05 | F85: 0.009058513313 | G85: 0.0005098460529 | H85: 0.007112446335 | I85: 0.0004003084856
B86: Balance check (should be close to zero) | C86: dB | D86: =D82-20*LOG10(D85)-D85*D84-32.44-20*LOG10(D52*1000) -> 0.0001374376649 | E86: -0.0006653184581 | F86: 0.0001360261214 | G86: -0.0006677307113 | H86: 0.0001360548976 | I86: -0.0006676812731
D87: Long term interference criterion | E87: Peak power objective | F87: Long term interference criterion | G87: Peak power objective | H87: Long term interference criterion | I87: Peak power objective

Sheet FS 167-182GHz
B1: Compatibility analysis between tank level probing radar in the frequency band 167-182 GHz and Fixed Service (FS) Systems
B3: Scenario 1: Light pole connected to a building by means of an FS link – FS Rx on building (TLPR main beam points exactly towards FS receiver). See Report figure 53.
B5: Victim Fixed Service (FS) system | D5: Band of FS system: 167-174,8 GHz | E5: Band of FS system: 167-174,8 GHz
B6: Sensor type | D6: Point-to-point (PP) | E6: Point-to-point (PP)
B7: FS: | C7: Units
B8: Assumed centre frequency of FS system | C8: GHz | D8: 170.9 | E8: 170.9
B9: Wavelength of FS system | C9: m | D9: =2.99792458/D8/10 -> 0.001754198116 | E9: =2.99792458/E8/10 -> 0.001754198116
B10: Receiver noise bandwidth (ITU-R-F.758-6) | C10: MHz | D10: 1000 | E10: 1000
B11: Receiver noise figure (ITU-R-F.758-6) | C11: dB | D11: 14 | E11: 14
B12: Misalignment of antenna main beam towards TLPR (angle δ in figure 53 in the Report) | C12: ° | D12: 0.19 | E12: 0.19
B13: Antenna gain in the direction of interferer (ITU-R-F.758-6) | C13: dBi | D13: 43 | E13: 43
B14: Feeder (insertion) loss (ITU-R-F.758-6) | C14: dB | D14: 0 | E14: 0
B15: I/N criterion (ITU-R F.758-6 ) | C15: dB | D15: -20 | E15: 5
B16: Receiver noise power density typical (ITU-R-F.758-6) | C16: dBW/MHz | D16: -130 | E16: -130
B17: Nominal long-term interference power density threshold (ITU-R-F.758-6) | C17: dBW/MHz | D17: =D16+D15 -> -150 | E17: =E16+E15 -> -125
B18: Interference threshold at receiver input within IF bandwidth | C18: dBm | D18: =D17+10*LOG10(D10)+30 -> -90 | E18: =E17+10*LOG10(E10)+30 -> -65
B19: (Receiver noise power density calculated over NF) | C19: dBW/MHz | D19: =-113.83+D11-30 -> -129.83 | E19: =-113.83+E11-30 -> -129.83
B21: Radiodetermination system (interferer):
B22: Conducted Tx power of interferer | C22: dBm | D22: 10 | E22: 10
B23: Out-of-band unwanted emissions attenuation (if FS victim is located in an adjacent band) | C23: dB | D23: 0 | E23: 0
B24: Tx e.i.r.p. of interferer | C24: dBm | D24: =D22-D23+D30 -> 42 | E24: =E22-E23+E30 -> 42
B25: Bandwidth of interferer Tx signal | C25: GHz | D25: 1 | E25: 1
B26: Mitigation technique (e.g. activity factor, adaptive power control) | C26: dB | D26: 0 | E26: 0
B27: Tx e.i.r.p. spectral density of interferer | C27: dBm/MHz | D27: =D24-10*LOG(D25*1000) -> 12 | E27: =E24-10*LOG(E25*1000) -> 12
B28: Tx e.i.r.p. spectral density of interferer with mitigation | C28: dBm/MHz | D28: =D24+D26-10*LOG(D25*1000) -> 12 | E28: =E24+E26-10*LOG(E25*1000) -> 12
B29: Tx e.i.r.p. of interferer with mitigation | C29: dBm | D29: =D24+D26 -> 42 | E29: =E24+E26 -> 42
B30: Gain of interferer antenna in direction of main radiation | C30: dBi | D30: 32 | E30: 32
B32: Tank attenuation (according to clause 2.3 in the Report) | C32: dB | D32: 63.8 | E32: 63.8
B33: Total e.i.r.p. towards FS system | C33: dBm | D33: =D29-D32 -> -21.8 | E33: =E29-E32 -> -21.8
B34: BWCF | C34: dB | D34: =IF(D25*1000<=D10, 0, 10*LOG10(D10/D25/1000)) -> 0 | E34: 0
B37: Separation distance calculation:
B38: Minimum coupling loss (MCL) | C38: dB | D38: =D33-(D18-D13+D14)+D34 -> 111.2 | E38: =E33-(E18-E13+E14)+E34 -> 86.2
B39: Separation distance with FSL model | C39: km | D39: =10^((D38-32.44-20*LOG10(D8*1000))/20) -> 0.05072919109 | E39: =10^((E38-32.44-20*LOG10(E8*1000))/20) -> 0.002852712054
B40: Specific attenuation due to atmospheric gases (ITU-R P.676-11 figure 5) | C40: dB/km | D40: 2 | E40: 2
B41: Separation distance adjusted for attenuation due to atmospheric gases | C41: km | D41: 0.05014613366 | E41: 0.002850841786
B42: Balance check (should be close to zero) | C42: dB | D42: =D38-20*LOG10(D41)-D41*D40-32.44-20*LOG10(D8*1000) -> 0.0001174008395 | E42: =E38-20*LOG10(E41)-E41*E40-32.44-20*LOG10(E8*1000) -> -5.25287075e-06
D43: Long term interference criterion | E43: Peak power objective
B47: Scenario 2: Light pole connected to a building by means of an FS link – FS Rx at light pole (TLPR main beam points exactly towards FS receiver). See Report figure 54.
B49: Victim Fixed Service (FS) system | D49: Band of FS system: 167-174,8 GHz | E49: Band of FS system: 167-174,8 GHz
B50: Sensor type | D50: Point-to-point (PP) | E50: Point-to-point (PP)
B51: FS: | C51: Units
B52: Assumed centre frequency of FS system | C52: GHz | D52: 170.9 | E52: 170.9
B53: Wavelength of FS system | C53: m | D53: =2.99792458/D52/10 -> 0.001754198116 | E53: =2.99792458/E52/10 -> 0.001754198116
B54: Receiver noise bandwidth (ITU-R-F.758-6) | C54: MHz | D54: 1000 | E54: 1000
B55: Receiver noise figure (ITU-R-F.758-6) | C55: dB | D55: 14 | E55: 14
B56: Misalignment of antenna main beam towards TLPR (angle α in figure 54 in the Report) | C56: ° | D56: 3.62 | E56: 3.62
B57: Antenna gain in the direction of interferer (ITU-R-F.758-6) | C57: dBi | D57: 22 | E57: 22
B58: Feeder (insertion) loss (ITU-R-F.758-6) | C58: dB | D58: 0 | E58: 0
B59: I/N criterion (ITU-R F.758-6 ) | C59: dB | D59: -20 | E59: 5
B60: Receiver noise power density typical (ITU-R-F.758-6) | C60: dBW/MHz | D60: -130 | E60: -130
B61: Nominal long-term interference power density threshold (ITU-R-F.758-6) | C61: dBW/MHz | D61: =D60+D59 -> -150 | E61: =E60+E59 -> -125
B62: Interference threshold at receiver input within IF bandwidth | C62: dBm | D62: =D61+10*LOG10(D54)+30 -> -90 | E62: =E61+10*LOG10(E54)+30 -> -65
B63: (Receiver noise power density calculated over NF) | C63: dBW/MHz | D63: =-113.83+D55-30 -> -129.83 | E63: =-113.83+E55-30 -> -129.83
B65: Radiodetermination system (interferer):
B66: Conducted Tx power of interferer | C66: dBm | D66: 10 | E66: 10
B67: Out-of-band unwanted emissions attenuation (if FS victim is located in an adjacent band) | C67: dB | D67: 0 | E67: 0
B68: Tx e.i.r.p. of interferer | C68: dBm | D68: =D66-D67+D74 -> 42 | E68: =E66-E67+E74 -> 42
B69: Bandwidth of interferer Tx signal | C69: GHz | D69: 1 | E69: 1
B70: Mitigation technique (e.g. activity factor, adaptive power control) | C70: dB | D70: 0 | E70: 0
B71: Tx e.i.r.p. spectral density of interferer | C71: dBm/MHz | D71: =D68-10*LOG(D69*1000) -> 12 | E71: =E68-10*LOG(E69*1000) -> 12
B72: Tx e.i.r.p. spectral density of interferer with mitigation | C72: dBm/MHz | D72: =D68+D70-10*LOG(D69*1000) -> 12 | E72: =E68+E70-10*LOG(E69*1000) -> 12
B73: Tx e.i.r.p. of interferer with mitigation | C73: dBm | D73: =D68+D70 -> 42 | E73: =E68+E70 -> 42
B74: Gain of interferer antenna in direction of main radiation | C74: dBi | D74: 32 | E74: 32
B76: Tank attenuation (according to clause 2.3 in the Report) | C76: dB | D76: 63.8 | E76: 63.8
B77: Total e.i.r.p. towards FS system | C77: dBm | D77: =D73-D76 -> -21.8 | E77: =E73-E76 -> -21.8
B78: BWCF | C78: dB | D78: =IF(D69*1000<=D54, 0, 10*LOG10(D54/D69/1000)) -> 0 | E78: 0
B81: Separation distance calculation:
B82: Minimum coupling loss (MCL) | C82: dB | D82: =D77-(D62-D57+D58)+D78 -> 90.2 | E82: =E77-(E62-E57+E58)+E78 -> 65.2
B83: Separation distance with FSL model | C83: km | D83: =10^((D82-32.44-20*LOG10(D52*1000))/20) -> 0.004521243915 | E83: =10^((E82-32.44-20*LOG10(E52*1000))/20) -> 0.0002542482295
B84: Specific attenuation due to atmospheric gases (ITU-R P.676-11 figure 5) | C84: dB/km | D84: 2 | E84: 2
B85: Separation distance adjusted for attenuation due to atmospheric gases | C85: km | D85: 0.00451647407 | E85: 0.0002542335051
B86: Balance check (should be close to zero) | C86: dB | D86: =D82-20*LOG10(D85)-D85*D84-32.44-20*LOG10(D52*1000) -> 0.0001353727466 | E86: =E82-20*LOG10(E85)-E85*E84-32.44-20*LOG10(E52*1000) -> -5.42442379e-06
D87: Long term interference criterion | E87: Peak power objective

Sheet Amateur 116-148,5GHz
B1: Compatibility analysis between tank level probing radar in the frequency band 116-148,5 GHz and Amateur Systems
B5: Victim Amateur system | D5: Band of amateur system: 122,25-123 GHz | H5: Band of amateur system: 134-141 GHz
B6: Sensor type | D6: Morse on-off keying | E6: Analogue voice | F6: Data, digital voice and multimedia | G6: Earth-moon-earth (EME) systems | H6: Morse on-off keying | I6: Analogue voice | J6: Data, digital voice and multimedia | K6: Earth-moon-earth (EME) systems
B7: Amateur system: | C7: Units
B8: Assumed centre frequency of Amateur system | C8: GHz | D8: 122.625 | E8: 122.625 | F8: 122.625 | G8: 122.625 | H8: 137.5 | I8: 137.5 | J8: 137.5 | K8: 137.5
B9: Wavelength of Amateur system | C9: m | D9: =2.99792458/D8/10 -> 0.002444790687 | E9: 0.002444790687 | F9: 0.002444790687 | G9: 0.002444790687 | H9: 0.002180308785 | I9: 0.002180308785 | J9: 0.002180308785 | K9: 0.002180308785
B10: Receiver IF bandwidth (ITU-R M.1732-2) | C10: MHz | D10: 0.0005 | E10: 0.0027 | F10: 0.0027 | G10: 0.0024 | H10: 0.0005 | I10: 0.0027 | J10: 0.0027 | K10: 0.0024
B11: Receiver noise figure (ITU-R M.1732-2) | C11: dB | D11: 3 | E11: 3 | F11: 3 | G11: 3 | H11: 3 | I11: 3 | J11: 3 | K11: 3
B12: Antenna gain in the direction of interferer (ITU-R M.1732-2) | C12: dBi | D12: 32 | E12: 32 | F12: 32 | G12: 32 | H12: 32 | I12: 32 | J12: 32 | K12: 32
B13: Feeder (insertion) loss (ITU-R M.1732-2) | C13: dB | D13: 2 | E13: 2 | F13: 2 | G13: 3 | H13: 2 | I13: 2 | J13: 2 | K13: 3
B14: I/N criterion (ITU-R M.1808) | C14: dB | D14: -10 | E14: -10 | F14: -10 | G14: -10 | H14: -10 | I14: -10 | J14: -10 | K14: -10
B15: Receiver noise power density | C15: dBW/MHz | D15: =-113.83+D11-30 -> -140.83 | E15: -140.83 | F15: -140.83 | G15: -140.83 | H15: -140.83 | I15: -140.83 | J15: -140.83 | K15: -140.83
B16: Interference power density threshold | C16: dBW/MHz | D16: =D15+D14 -> -150.83 | E16: -150.83 | F16: -150.83 | G16: -150.83 | H16: -150.83 | I16: -150.83 | J16: -150.83 | K16: -150.83
B17: Interference threshold at receiver input within IF bandwidth | C17: dBm | D17: =D16+10*LOG10(D10)+30 -> -153.8403 | E17: -146.5163624 | F17: -146.5163624 | G17: -147.0278876 | H17: -153.8403 | I17: -146.5163624 | J17: -146.5163624 | K17: -147.0278876
B19: Radiodetermination system (interferer):
B20: Conducted Tx power of interferer | C20: dBm | D20: 10 | E20: 10 | F20: 10 | G20: 10 | H20: 10 | I20: 10 | J20: 10 | K20: 10
B21: Out-of-band unwanted emissions attenuation (if Amateur victim is located in an adjacent band) | C21: dB | D21: 0 | E21: 0 | F21: 0 | G21: 0 | H21: 0 | I21: 0 | J21: 0 | K21: 0
B22: Tx e.i.r.p. of interferer | C22: dBm | D22: =D20-D21+D28 -> 42 | E22: 42 | F22: 42 | G22: 42 | H22: 42 | I22: 42 | J22: 42 | K22: 42
B23: Bandwidth of interferer Tx signal | C23: GHz | D23: 1 | E23: 1 | F23: 1 | G23: 1 | H23: 1 | I23: 1 | J23: 1 | K23: 1
B24: Mitigation technique (e.g. activity factor, adaptive power control) | C24: dB | D24: 0 | E24: 0 | F24: 0 | G24: 0 | H24: 0 | I24: 0 | J24: 0 | K24: 0
B25: Tx e.i.r.p. spectral density of interferer | C25: dBm/MHz | D25: =D22-10*LOG(D23*1000) -> 12 | E25: 12 | F25: 12 | G25: 12 | H25: 12 | I25: 12 | J25: 12 | K25: 12
B26: Tx e.i.r.p. spectral density of interferer with mitigation | C26: dBm/MHz | D26: =D22+D24-10*LOG(D23*1000) -> 12 | E26: 12 | F26: 12 | G26: 12 | H26: 12 | I26: 12 | J26: 12 | K26: 12
B27: Tx e.i.r.p. of interferer with mitigation | C27: dBm | D27: =D22+D24 -> 42 | E27: 42 | F27: 42 | G27: 42 | H27: 42 | I27: 42 | J27: 42 | K27: 42
B28: Gain of the interferer antenna in direction of main radiation | C28: dBi | D28: 32 | E28: 32 | F28: 32 | G28: 32 | H28: 32 | I28: 32 | J28: 32 | K28: 32
B30: Tank attenuation (according to clause 2.3 in the Report) | C30: dB | D30: 58.9 | E30: 58.9 | F30: 58.9 | G30: 58.9 | H30: 60.6 | I30: 60.6 | J30: 60.6 | K30: 60.6
B31: Total e.i.r.p. towards Amateur system | C31: dBm | D31: =D27-D30 -> -16.9 | E31: -16.9 | F31: -16.9 | G31: -16.9 | H31: -18.6 | I31: -18.6 | J31: -18.6 | K31: -18.6
B32: BWCF | C32: dB | D32: =IF(D23*1000<=D10, 0, 10*LOG10(D10/D23/1000)) -> -63.01029996 | E32: -55.68636236 | F32: -55.68636236 | G32: -56.19788758 | H32: -63.01029996 | I32: -55.68636236 | J32: -55.68636236 | K32: -56.19788758
B35: Separation distance calculation:
B36: Minimum coupling loss (MCL) | C36: dB | D36: =D31-(D17-D12+D13)+D32 -> 103.93 | E36: 103.93 | F36: 103.93 | G36: 102.93 | H36: 102.23 | I36: 102.23 | J36: 102.23 | K36: 101.23
B37: Separation distance with FSL model | C37: km | D37: =10^((D36-32.44-20*LOG10(D8*1000))/20) -> 0.03061406357 | E37: 0.03061406357 | F37: 0.03061406357 | G37: 0.02728481287 | H37: 0.0224490156 | I37: 0.0224490156 | J37: 0.0224490156 | K37: 0.02000770622
B38: Specific attenuation due to atmospheric gases (ITU-R P.676-11 figure 5) | C38: dB/km | D38: 0.4 | E38: 0.4 | F38: 0.4 | G38: 0.4 | H38: 0.8 | I38: 0.8 | J38: 0.8 | K38: 0.8
B39: Separation distance adjusted for attenuation due to atmospheric gases | C39: km | D39: 0.03057051965 | E39: 0.03057051965 | F39: 0.03057051965 | G39: 0.02725016987 | H39: 0.02240239848 | I39: 0.02240239848 | J39: 0.02240239848 | K39: 0.01997063012
B40: Balance check (should be close to zero) | C40: dB | D40: =D36-20*LOG10(D39)-D39*D38-32.44-20*LOG10(D8*1000) -> 0.0001349632539 | E40: 0.0001349632539 | F40: 0.0001349632539 | G40: 0.0001352458792 | H40: 0.0001337578471 | I40: 0.0001337578471 | J40: 0.000133757847 | K40: 0.0001341685791

Sheet Amateur 231,5-250GHz
B1: Compatibility analysis between tank level probing radar in the frequency band 231,5-250 GHz and Amateur Systems
B5: Victim Amateur system | D5: Band of amateur system: 241-250 GHz
B6: Sensor type | D6: Morse on-off keying | E6: Analogue voice | F6: Data, digital voice and multimedia | G6: Earth-moon-earth (EME) systems
B7: Amateur system: | C7: Units
B8: Assumed centre frequency of Amateur system | C8: GHz | D8: 245.5 | E8: 245.5 | F8: 245.5 | G8: 245.5
B9: Wavelength of Amateur system | C9: m | D9: =2.99792458/D8/10 -> 0.001221150542 | E9: =2.99792458/E8/10 -> 0.001221150542 | F9: =2.99792458/F8/10 -> 0.001221150542 | G9: =2.99792458/G8/10 -> 0.001221150542
B10: Receiver IF bandwidth (ITU-R M.1732-2) | C10: MHz | D10: 0.0005 | E10: 0.0027 | F10: 0.0027 | G10: 0.0024
B11: Receiver noise figure (ITU-R M.1732-2) | C11: dB | D11: 5 | E11: 5 | F11: 5 | G11: 5
B12: Antenna gain in the direction of interferer (ITU-R M.1732-2) | C12: dBi | D12: 32 | E12: 32 | F12: 32 | G12: 32
B13: Feeder (insertion) loss (ITU-R M.1732-2) | C13: dB | D13: 3 | E13: 3 | F13: 3 | G13: 4
B14: I/N criterion (ITU-R M.1808) | C14: dB | D14: -10 | E14: -10 | F14: -10 | G14: -10
B15: Receiver noise power density | C15: dBW/MHz | D15: =-113.83+D11-30 -> -138.83 | E15: =-113.83+E11-30 -> -138.83 | F15: =-113.83+F11-30 -> -138.83 | G15: =-113.83+G11-30 -> -138.83
B16: Interference power density threshold | C16: dBW/MHz | D16: =D15+D14 -> -148.83 | E16: =E15+E14 -> -148.83 | F16: =F15+F14 -> -148.83 | G16: =G15+G14 -> -148.83
B17: Interference threshold at receiver input within IF bandwidth | C17: dBm | D17: =D16+10*LOG10(D10)+30 -> -151.8403 | E17: =E16+10*LOG10(E10)+30 -> -144.5163624 | F17: =F16+10*LOG10(F10)+30 -> -144.5163624 | G17: =G16+10*LOG10(G10)+30 -> -145.0278876
B19: Radiodetermination system (interferer):
B20: Conducted Tx power of interferer | C20: dBm | D20: 10 | E20: 10 | F20: 10 | G20: 10
B21: Out-of-band unwanted emissions attenuation (if Amateur victim is located in an adjacent band) | C21: dB | D21: 0 | E21: 0 | F21: 0 | G21: 0
B22: Tx e.i.r.p. of interferer | C22: dBm | D22: =D20-D21+D28 -> 42 | E22: =E20-E21+E28 -> 42 | F22: =F20-F21+F28 -> 42 | G22: =G20-G21+G28 -> 42
B23: Bandwidth of interferer Tx signal | C23: GHz | D23: 1 | E23: 1 | F23: 1 | G23: 1
B24: Mitigation technique (e.g. activity factor, adaptive power control) | C24: dB | D24: 0 | E24: 0 | F24: 0 | G24: 0
B25: Tx e.i.r.p. spectral density of interferer | C25: dBm/MHz | D25: =D22-10*LOG(D23*1000) -> 12 | E25: =E22-10*LOG(E23*1000) -> 12 | F25: =F22-10*LOG(F23*1000) -> 12 | G25: =G22-10*LOG(G23*1000) -> 12
B26: Tx e.i.r.p. spectral density of interferer with mitigation | C26: dBm/MHz | D26: =D22+D24-10*LOG(D23*1000) -> 12 | E26: =E22+E24-10*LOG(E23*1000) -> 12 | F26: =F22+F24-10*LOG(F23*1000) -> 12 | G26: =G22+G24-10*LOG(G23*1000) -> 12
B27: Tx e.i.r.p. of interferer with mitigation | C27: dBm | D27: =D22+D24 -> 42 | E27: =E22+E24 -> 42 | F27: =F22+F24 -> 42 | G27: =G22+G24 -> 42
B28: Gain of the interferer antenna in direction of main radiation | C28: dBi | D28: 32 | E28: 32 | F28: 32 | G28: 32
B30: Tank attenuation (according to clause 2.3 in the Report) | C30: dB | D30: 69.5 | E30: 69.5 | F30: 69.5 | G30: 69.5
B31: Total e.i.r.p. towards Amateur system | C31: dBm | D31: =D27-D30 -> -27.5 | E31: =E27-E30 -> -27.5 | F31: =F27-F30 -> -27.5 | G31: =G27-G30 -> -27.5
B32: BWCF | C32: dB | D32: =IF(D23*1000<=D10, 0, 10*LOG10(D10/D23/1000)) -> -63.01029996 | E32: =IF(E23*1000<=E10, 0, 10*LOG10(E10/E23/1000)) -> -55.68636236 | F32: =IF(F23*1000<=F10, 0, 10*LOG10(F10/F23/1000)) -> -55.68636236 | G32: =IF(G23*1000<=G10, 0, 10*LOG10(G10/G23/1000)) -> -56.19788758
B35: Separation distance calculation:
B36: Minimum coupling loss (MCL) | C36: dB | D36: =D31-(D17-D12+D13)+D32 -> 90.33 | E36: =E31-(E17-E12+E13)+E32 -> 90.33 | F36: =F31-(F17-F12+F13)+F32 -> 90.33 | G36: =G31-(G17-G12+G13)+G32 -> 89.33
B37: Separation distance with FSL model | C37: km | D37: =10^((D36-32.44-20*LOG10(D8*1000))/20) -> 0.003194835515 | E37: =10^((E36-32.44-20*LOG10(E8*1000))/20) -> 0.003194835515 | F37: =10^((F36-32.44-20*LOG10(F8*1000))/20) -> 0.003194835515 | G37: =10^((G36-32.44-20*LOG10(G8*1000))/20) -> 0.00284740015
B38: Specific attenuation due to atmospheric gases (ITU-R P.676-11 figure 5) | C38: dB/km | D38: 3 | E38: 3 | F38: 3 | G38: 3
B39: Separation distance adjusted for attenuation due to atmospheric gases | C39: km | D39: 0.003191266235 | E39: 0.003191266235 | F39: 0.003191266235 | G39: 0.002844559563
B40: Balance check (should be close to zero) | C40: dB | D40: =D36-20*LOG10(D39)-D39*D38-32.44-20*LOG10(D8*1000) -> 0.0001355287561 | E40: =E36-20*LOG10(E39)-E39*E38-32.44-20*LOG10(E8*1000) -> 0.0001355287561 | F40: =F36-20*LOG10(F39)-F39*F38-32.44-20*LOG10(F8*1000) -> 0.0001355287561 | G40: =G36-20*LOG10(G39)-G39*G38-32.44-20*LOG10(G8*1000) -> 0.0001357509055
